Body Name,ONS SNAC ID,Pay Date,Transaction No,Amount �,Supplier Name,Company Registration No,Department,Account Name,CIPFA Service Reporting
Swale Borough Council,29UM,04/03/2020,1174398,1026.00,ACORN MAINTENANCE SERVICES,3546898                  ,HOUSING SERVICES,Rechargeable Environ Works,Housing
Swale Borough Council,29UM,04/03/2020,1174922,588.12,ACORN MAINTENANCE SERVICES,3546898                  ,HOUSING SERVICES,Staying Put small repairs (contractors),Housing
Swale Borough Council,29UM,04/03/2020,1174955,12838.50,APCOA PARKING (UK) LTD,2572947                  ,CAR PARKS,Private Contractors,Highway and Transport Services
Swale Borough Council,29UM,04/03/2020,1174955,19257.76,APCOA PARKING (UK) LTD,2572947                  ,CAR PARKS,Private Contractors,Highway and Transport Services
Swale Borough Council,29UM,04/03/2020,1174699,302.00,BEVAN BRITTAN LLP,OC309219                 ,ECONOMIC DEVELOPMENT,Legal Fees,Planning and Development Services
Swale Borough Council,29UM,04/03/2020,1174917,285.00,BLENWOOD LTD,4383277                  ,LEISURE & OPEN SPACES,Maintenance - Grounds,Cultural and Related Services
Swale Borough Council,29UM,04/03/2020,1174846,2400.00,BLOOM PROCUREMENT SERVICES LTD,08045123                 ,PROPERTY SERVICES,Consultancy/Specialist Advice,Internal Trading Cost Centres
Swale Borough Council,29UM,04/03/2020,1174847,3500.00,BLOOM PROCUREMENT SERVICES LTD,08045123                 ,PROPERTY SERVICES,Consultancy/Specialist Advice,Internal Trading Cost Centres
Swale Borough Council,29UM,04/03/2020,1174748,2802.80,BM AMBULANCE SERVICE LTD,09736131                 ,ECONOMY & COMMUNITIES,Communities Fund Expenditure,Ledger/Suspense Codes
Swale Borough Council,29UM,04/03/2020,1174934,17832.00,BRE LTD,                         ,HOUSING SERVICES,Consultancy/Specialist Advice,Housing
Swale Borough Council,29UM,04/03/2020,1175067,5476.28,BROADWAY ESTATES,                         ,REVENUE SERVICES,KCC Relocation Scheme - Expenditure,Housing
Swale Borough Council,29UM,04/03/2020,1175068,4532.00,BROADWAY ESTATES,                         ,REVENUE SERVICES,KCC Relocation Scheme - Expenditure,Housing
Swale Borough Council,29UM,04/03/2020,1174865,2315.75,CLINQUE PORTS ROWING CIC,                         ,ECONOMY & COMMUNITIES,Grants & Subscriptions,Central Services to the Public
Swale Borough Council,29UM,04/03/2020,1175042,1111.57,COLDWELL CONSTRUCTION LTD,4814340                  ,HOUSING SERVICES,Housing Renovation Grants,Not used in this Structure
Swale Borough Council,29UM,04/03/2020,1173667,367.20,CONTRACT SECURITY SERVICES,2461362                  ,EXCHEQUER,Cash Security,Internal Trading Cost Centres
Swale Borough Council,29UM,04/03/2020,1173667,2738.76,CONTRACT SECURITY SERVICES,2461362                  ,CAR PARKS,Cash Security,Highway and Transport Services
Swale Borough Council,29UM,04/03/2020,1174500,367.20,CONTRACT SECURITY SERVICES,2461362                  ,EXCHEQUER,Cash Security,Internal Trading Cost Centres
Swale Borough Council,29UM,04/03/2020,1174500,2611.04,CONTRACT SECURITY SERVICES,2461362                  ,CAR PARKS,Cash Security,Highway and Transport Services
Swale Borough Council,29UM,04/03/2020,1174840,-278.61,CONTRACT SECURITY SERVICES,2461362                  ,CAR PARKS,Cash Security,Highway and Transport Services
Swale Borough Council,29UM,04/03/2020,1174840,-131.64,CONTRACT SECURITY SERVICES,2461362                  ,CAR PARKS,Cash Security,Highway and Transport Services
Swale Borough Council,29UM,04/03/2020,1174840,-265.91,CONTRACT SECURITY SERVICES,2461362                  ,CAR PARKS,Cash Security,Highway and Transport Services
Swale Borough Council,29UM,04/03/2020,1174762,1500.00,CURLY'S LEGACY,                         ,ECONOMY & COMMUNITIES,Grants & Subscriptions,Central Services to the Public
Swale Borough Council,29UM,04/03/2020,1174780,6500.00,CUSHMAN & WAKEFIELD DEBENHAM T L LTD,2757768                  ,ECONOMIC DEVELOPMENT,Fees and Services,Planning and Development Services
Swale Borough Council,29UM,04/03/2020,1175044,11564.62,DAYTRAD LIMITED,7654373                  ,HOUSING SERVICES,Housing Renovation Grants,Not used in this Structure
Swale Borough Council,29UM,04/03/2020,1174267,480.00,DISCLOSURE & BARRING SERVICE (DT),                         ,LICENCING,Fees and Services,Environmental and Regulatory Services
Swale Borough Council,29UM,04/03/2020,1174678,85878.09,DSSL GROUP LTD,6993052                  ,COMMUNITY SAFETY,Fees and Services,Environmental and Regulatory Services
Swale Borough Council,29UM,04/03/2020,1174781,32732.27,DSSL GROUP LTD,6993052                  ,COMMUNITY SAFETY,Fees and Services,Environmental and Regulatory Services
Swale Borough Council,29UM,04/03/2020,1174958,20231.18,DSSL GROUP LTD,6993052                  ,COMMUNITY SAFETY,Fees and Services,Environmental and Regulatory Services
Swale Borough Council,29UM,04/03/2020,1174885,110.23,EDF ENERGY CUSTOMERS PLC,                         ,HOUSING SERVICES,Electricity,Housing
Swale Borough Council,29UM,04/03/2020,1174885,309.18,EDF ENERGY CUSTOMERS PLC,                         ,HOUSING SERVICES,Gas,Housing
Swale Borough Council,29UM,04/03/2020,1174798,380.00,REDACTED PERSONAL INFORMATION,                         ,ENVIRONMENTAL RESPONSE TEAM,Fees - Veterinary,Environmental and Regulatory Services
Swale Borough Council,29UM,04/03/2020,1174765,400.00,FAVERSHAM FOODBANK,                         ,ECONOMY & COMMUNITIES,Grants & Subscriptions,Central Services to the Public
Swale Borough Council,29UM,04/03/2020,1174879,300.00,FAVERSHAM STRIKEFORCE,                         ,TOURISM & SPORTS DEVELOPMENT,Grants & Subscriptions,Cultural and Related Services
Swale Borough Council,29UM,04/03/2020,1174871,1000.00,FAVERSHAM TENNIS CLUB,                         ,TOURISM & SPORTS DEVELOPMENT,Grants & Subscriptions,Cultural and Related Services
Swale Borough Council,29UM,04/03/2020,1174353,3720.00,FIRST STOP HOUSING SOLUTION LTD,                         ,HOUSING SERVICES,NL (Nightly Lets) - Homelessness Landlord Payments,Housing
Swale Borough Council,29UM,04/03/2020,1174750,330.75,FOXLEYS LTD,3385956                  ,MULTISTOREY CAR PARK,Building Maintenance - Reactive,Highway and Transport Services
Swale Borough Council,29UM,04/03/2020,1174750,78.70,FOXLEYS LTD,3385956                  ,MULTISTOREY CAR PARK,Building Maintenance - Reactive,Highway and Transport Services
Swale Borough Council,29UM,04/03/2020,1174752,264.60,FOXLEYS LTD,3385956                  ,MULTISTOREY CAR PARK,Building Maintenance - Reactive,Highway and Transport Services
Swale Borough Council,29UM,04/03/2020,1174752,98.86,FOXLEYS LTD,3385956                  ,MULTISTOREY CAR PARK,Building Maintenance - Reactive,Highway and Transport Services
Swale Borough Council,29UM,04/03/2020,1174753,381.80,FOXLEYS LTD,3385956                  ,MULTISTOREY CAR PARK,Building Maintenance - Reactive,Highway and Transport Services
Swale Borough Council,29UM,04/03/2020,1174753,225.96,FOXLEYS LTD,3385956                  ,MULTISTOREY CAR PARK,Building Maintenance - Reactive,Highway and Transport Services
Swale Borough Council,29UM,04/03/2020,1174775,492.00,FOXLEYS LTD,3385956                  ,FINANCIAL SERVICES,STC - Capital Constuction - CIS Works,Not used in this Structure
Swale Borough Council,29UM,04/03/2020,1174951,1718.15,GRAHAM BOULDEN & COMPANY,                         ,CAR PARKS,Rent,Highway and Transport Services
Swale Borough Council,29UM,04/03/2020,1174926,1700.00,GRANSDEN CONSTRUCTION LTD,05643449                 ,DIRECTOR OF REGENERATION,Capitalised Fees And Charges,Not used in this Structure
Swale Borough Council,29UM,04/03/2020,1174662,550.00,HBINFO LTD,5779046                  ,REVENUE SERVICES,Payments in Year,Ledger/Suspense Codes
Swale Borough Council,29UM,04/03/2020,1175041,253.00,HIGHER ELEVATION LTD,4078005                  ,HOUSING SERVICES,Housing Renovation Grants,Not used in this Structure
Swale Borough Council,29UM,04/03/2020,1174698,400.00,HUBBARD & HOUGHTON CONSTRUCTION LTD,                         ,HOUSING SERVICES,Staying Put small repairs (contractors),Housing
Swale Borough Council,29UM,04/03/2020,1174843,1325.00,INTEGRITY PRINT LTD,GB927217815              ,CAR PARKS,External Permit Printing,Highway and Transport Services
Swale Borough Council,29UM,04/03/2020,1174374,1200.00,REDACTED PERSONAL INFORMATION,                         ,HOUSING SERVICES,NL (Nightly Lets) - Homelessness Landlord Payments,Housing
Swale Borough Council,29UM,04/03/2020,1175017,300.00,KICKSTART FOOTBALL LIMITED,                         ,TOURISM & SPORTS DEVELOPMENT,Grants & Subscriptions,Cultural and Related Services
Swale Borough Council,29UM,04/03/2020,1174735,445.00,LARAC,                         ,CONTRACTS,Payments in Year,Ledger/Suspense Codes
Swale Borough Council,29UM,04/03/2020,1174804,200.00,LEMAR LIMITED,04350292                 ,CAR PARKS,Maintenance - Grounds,Highway and Transport Services
Swale Borough Council,29UM,04/03/2020,1174804,100.00,LEMAR LIMITED,04350292                 ,CAR PARKS,Maintenance - Grounds,Highway and Transport Services
Swale Borough Council,29UM,04/03/2020,1174205,17862.00,LESSHOMELESS LIMITED,08458851                 ,HOUSING SERVICES,NL (Nightly Lets) - Homelessness Landlord Payments,Housing
Swale Borough Council,29UM,04/03/2020,1174890,672.08,LET ME 2,                         ,HOUSING SERVICES,Homelessness  Prevention Services,Housing
Swale Borough Council,29UM,04/03/2020,1174778,3045.00,LG FUTURES LTD,05308266                 ,FINANCIAL SERVICES,Payments in Year,Ledger/Suspense Codes
Swale Borough Council,29UM,04/03/2020,1174208,5830.00,LINK PROPERTY GROUP,                         ,HOUSING SERVICES,NL (Nightly Lets) - Homelessness Landlord Payments,Housing
Swale Borough Council,29UM,04/03/2020,1174718,900.00,LOCAL GOVERNMENT LAW TV,6790538                  ,MKS LEGAL SERVICES,Recruitment Adverts - Staff,Internal Trading Cost Centres
Swale Borough Council,29UM,04/03/2020,1175073,54849.32,LONDON BOROUGH OF HAMMERSMITH & FULHAM (DT),                         ,FINANCIAL SERVICES,Interest Payable,Financing and Investment Income
Swale Borough Council,29UM,04/03/2020,1174060,989.00,MAGEES GUESTHOUSE,                         ,HOUSING SERVICES,B & B - Homelessness Landlord Payments,Housing
Swale Borough Council,29UM,04/03/2020,1174060,252.00,MAGEES GUESTHOUSE,                         ,HOUSING SERVICES,B & B - Homelessness Landlord Payments,Housing
Swale Borough Council,29UM,04/03/2020,1174239,784.00,MAGEES GUESTHOUSE,                         ,HOUSING SERVICES,B & B - Homelessness Landlord Payments,Housing
Swale Borough Council,29UM,04/03/2020,1174239,252.00,MAGEES GUESTHOUSE,                         ,HOUSING SERVICES,B & B - Homelessness Landlord Payments,Housing
Swale Borough Council,29UM,04/03/2020,1174472,952.00,MAGEES GUESTHOUSE,                         ,HOUSING SERVICES,B & B - Homelessness Landlord Payments,Housing
Swale Borough Council,29UM,04/03/2020,1174472,196.00,MAGEES GUESTHOUSE,                         ,HOUSING SERVICES,B & B - Homelessness Landlord Payments,Housing
Swale Borough Council,29UM,04/03/2020,1174614,784.00,MAGEES GUESTHOUSE,                         ,HOUSING SERVICES,B & B - Homelessness Landlord Payments,Housing
Swale Borough Council,29UM,04/03/2020,1174614,196.00,MAGEES GUESTHOUSE,                         ,HOUSING SERVICES,B & B - Homelessness Landlord Payments,Housing
Swale Borough Council,29UM,04/03/2020,1174770,756.00,MAGEES GUESTHOUSE,                         ,HOUSING SERVICES,B & B - Homelessness Landlord Payments,Housing
Swale Borough Council,29UM,04/03/2020,1174770,364.00,MAGEES GUESTHOUSE,                         ,HOUSING SERVICES,B & B - Homelessness Landlord Payments,Housing
Swale Borough Council,29UM,04/03/2020,1173529,14577.50,MAIDSTONE BOROUGH COUNCIL,                         ,PLANNING SERVICES,MKS Charges for Land Charges,Central Services to the Public
Swale Borough Council,29UM,04/03/2020,1173539,29155.00,MAIDSTONE BOROUGH COUNCIL,                         ,PLANNING SERVICES,MKS Charges for Land Charges,Central Services to the Public
Swale Borough Council,29UM,04/03/2020,1174727,4960.80,MAIDSTONE BOROUGH COUNCIL,                         ,MKS LEGAL SERVICES,Awaiting Allocation,Ledger/Suspense Codes
Swale Borough Council,29UM,04/03/2020,1174936,86235.60,MAIDSTONE BOROUGH COUNCIL,                         ,CONTRACTS,Private Contractors,Environmental and Regulatory Services
Swale Borough Council,29UM,04/03/2020,1174936,216865.54,MAIDSTONE BOROUGH COUNCIL,                         ,CONTRACTS,Private Contractors,Environmental and Regulatory Services
Swale Borough Council,29UM,04/03/2020,1174841,5033.61,MATRIX SCM LTD,2227962                  ,HUMAN RESOURCES,Agency/Contract Staff,Internal Trading Cost Centres
Swale Borough Council,29UM,04/03/2020,1174737,680.00,MAYLOW CONSTRUCTION LTD,                         ,LEISURE & OPEN SPACES,Maintenance - Grounds,Cultural and Related Services
Swale Borough Council,29UM,04/03/2020,1174177,1008.00,MEDWAY ACCOMMODATION LIMITED,                         ,HOUSING SERVICES,B & B - Homelessness Landlord Payments,Housing
Swale Borough Council,29UM,04/03/2020,1174177,210.00,MEDWAY ACCOMMODATION LIMITED,                         ,HOUSING SERVICES,B & B - Homelessness Landlord Payments,Housing
Swale Borough Council,29UM,04/03/2020,1174177,196.00,MEDWAY ACCOMMODATION LIMITED,                         ,HOUSING SERVICES,B & B - Homelessness Landlord Payments,Housing
Swale Borough Council,29UM,04/03/2020,1174177,40.83,MEDWAY ACCOMMODATION LIMITED,                         ,HOUSING SERVICES,B & B - Homelessness Landlord Payments,Housing
Swale Borough Council,29UM,04/03/2020,1174377,1280.00,MEDWAY ACCOMMODATION LIMITED,                         ,HOUSING SERVICES,B & B - Homelessness Landlord Payments,Housing
Swale Borough Council,29UM,04/03/2020,1174377,266.67,MEDWAY ACCOMMODATION LIMITED,                         ,HOUSING SERVICES,B & B - Homelessness Landlord Payments,Housing
Swale Borough Council,29UM,04/03/2020,1174377,140.00,MEDWAY ACCOMMODATION LIMITED,                         ,HOUSING SERVICES,B & B - Homelessness Landlord Payments,Housing
Swale Borough Council,29UM,04/03/2020,1174377,29.17,MEDWAY ACCOMMODATION LIMITED,                         ,HOUSING SERVICES,B & B - Homelessness Landlord Payments,Housing
Swale Borough Council,29UM,04/03/2020,1174559,1340.00,MEDWAY ACCOMMODATION LIMITED,                         ,HOUSING SERVICES,B & B - Homelessness Landlord Payments,Housing
Swale Borough Council,29UM,04/03/2020,1174559,279.17,MEDWAY ACCOMMODATION LIMITED,                         ,HOUSING SERVICES,B & B - Homelessness Landlord Payments,Housing
Swale Borough Council,29UM,04/03/2020,1174559,140.00,MEDWAY ACCOMMODATION LIMITED,                         ,HOUSING SERVICES,B & B - Homelessness Landlord Payments,Housing
Swale Borough Council,29UM,04/03/2020,1174559,29.17,MEDWAY ACCOMMODATION LIMITED,                         ,HOUSING SERVICES,B & B - Homelessness Landlord Payments,Housing
Swale Borough Council,29UM,04/03/2020,1174719,1092.00,MEDWAY ACCOMMODATION LIMITED,                         ,HOUSING SERVICES,B & B - Homelessness Landlord Payments,Housing
Swale Borough Council,29UM,04/03/2020,1174719,227.50,MEDWAY ACCOMMODATION LIMITED,                         ,HOUSING SERVICES,B & B - Homelessness Landlord Payments,Housing
Swale Borough Council,29UM,04/03/2020,1174719,140.00,MEDWAY ACCOMMODATION LIMITED,                         ,HOUSING SERVICES,B & B - Homelessness Landlord Payments,Housing
Swale Borough Council,29UM,04/03/2020,1174719,29.17,MEDWAY ACCOMMODATION LIMITED,                         ,HOUSING SERVICES,B & B - Homelessness Landlord Payments,Housing
Swale Borough Council,29UM,04/03/2020,1174842,583.45,METRIC GROUP LTD,2560839                  ,CAR PARKS,Equipment Purchase,Highway and Transport Services
Swale Borough Council,29UM,04/03/2020,1174954,665.00,METRIC GROUP LTD,2560839                  ,CAR PARKS,Fees - Licence,Highway and Transport Services
Swale Borough Council,29UM,04/03/2020,1174680,1860.00,METROSIGNS 2000 (BEDFORD) LTD,4597343                  ,LEISURE & OPEN SPACES,Maintenance - Grounds,Cultural and Related Services
Swale Borough Council,29UM,04/03/2020,1174777,19500.00,REDACTED PERSONAL INFORMATION,                         ,PLANNING SERVICES,Legal Fees,Planning and Development Services
Swale Borough Council,29UM,04/03/2020,1174777,3900.00,REDACTED PERSONAL INFORMATION,                         ,PLANNING SERVICES,Legal Fees,Planning and Development Services
Swale Borough Council,29UM,04/03/2020,1174176,640.00,REDACTED PERSONAL INFORMATION,                         ,HOUSING SERVICES,B & B - Homelessness Landlord Payments,Housing
Swale Borough Council,29UM,04/03/2020,1174378,630.00,REDACTED PERSONAL INFORMATION,                         ,HOUSING SERVICES,B & B - Homelessness Landlord Payments,Housing
Swale Borough Council,29UM,04/03/2020,1174560,390.00,REDACTED PERSONAL INFORMATION,                         ,HOUSING SERVICES,B & B - Homelessness Landlord Payments,Housing
Swale Borough Council,29UM,04/03/2020,1174560,60.00,REDACTED PERSONAL INFORMATION,                         ,HOUSING SERVICES,B & B - Homelessness Landlord Payments,Housing
Swale Borough Council,29UM,04/03/2020,1174696,250.00,NATIONWIDE CRASH REPAIR CENTRES LTD,650582                   ,HOUSING SERVICES,Insurance Excess Rental Car,Housing
Swale Borough Council,29UM,04/03/2020,1174696,-1580.85,NATIONWIDE CRASH REPAIR CENTRES LTD,650582                   ,HOUSING SERVICES,Insurance Settlement Lease Cars,Housing
Swale Borough Council,29UM,04/03/2020,1174696,1580.85,NATIONWIDE CRASH REPAIR CENTRES LTD,650582                   ,HOUSING SERVICES,Insurance Repair,Housing
Swale Borough Council,29UM,04/03/2020,1174697,500.00,NATIONWIDE CRASH REPAIR CENTRES LTD,650582                   ,HOUSING SERVICES,Insurance Excess Rental Car,Housing
Swale Borough Council,29UM,04/03/2020,1174697,-223.65,NATIONWIDE CRASH REPAIR CENTRES LTD,650582                   ,HOUSING SERVICES,Insurance Settlement Lease Cars,Housing
Swale Borough Council,29UM,04/03/2020,1174697,223.65,NATIONWIDE CRASH REPAIR CENTRES LTD,650582                   ,HOUSING SERVICES,Insurance Repair,Housing
Swale Borough Council,29UM,04/03/2020,1174881,500.00,OSPRINGE PARISH COUNCIL,                         ,ECONOMY & COMMUNITIES,Grants & Subscriptions,Central Services to the Public
Swale Borough Council,29UM,04/03/2020,1174745,708.00,PHOENIX SOFTWARE LTD,                         ,COMMUNICATIONS,Fees - Licence,Internal Trading Cost Centres
Swale Borough Council,29UM,04/03/2020,1174051,24.00,PINSENT MASONS LLP,OC333653                 ,ECONOMIC DEVELOPMENT,Fees - Land Registry,Planning and Development Services
Swale Borough Council,29UM,04/03/2020,1174051,13.35,PINSENT MASONS LLP,OC333653                 ,ECONOMIC DEVELOPMENT,Fees and Services,Planning and Development Services
Swale Borough Council,29UM,04/03/2020,1174051,4749.50,PINSENT MASONS LLP,OC333653                 ,FINANCIAL SERVICES,STC - Capitalised Fees And Charges,Not used in this Structure
Swale Borough Council,29UM,04/03/2020,1174051,17020.50,PINSENT MASONS LLP,OC333653                 ,FINANCIAL SERVICES,STC - Capitalised Fees And Charges,Not used in this Structure
Swale Borough Council,29UM,04/03/2020,1174051,2709.00,PINSENT MASONS LLP,OC333653                 ,FINANCIAL SERVICES,STC - Capitalised Fees And Charges,Not used in this Structure
Swale Borough Council,29UM,04/03/2020,1174736,1000.00,PREPARED MEDIA LTD,08307674                 ,PLANNING SERVICES,Recruitment Adverts - Staff,Internal Trading Cost Centres
Swale Borough Council,29UM,04/03/2020,1173179,47101.08,PROLUDIC LTD,04455803                 ,LEISURE & OPEN SPACES,Capital Constuction - CIS Works,Not used in this Structure
Swale Borough Council,29UM,04/03/2020,1174707,-500.00,PROLUDIC LTD,04455803                 ,LEISURE & OPEN SPACES,Capital Constuction - CIS Works,Not used in this Structure
Swale Borough Council,29UM,04/03/2020,1174833,1000.00,RAYBEL CHARTERS CIC,                         ,TOURISM & SPORTS DEVELOPMENT,Grants & Subscriptions,Cultural and Related Services
Swale Borough Council,29UM,04/03/2020,1174830,1560.00,RH ENVIRONMENTAL LTD,5530460                  ,COMMUNITY SAFETY,Fees and Services,Planning and Development Services
Swale Borough Council,29UM,04/03/2020,1174769,650.00,REDACTED PERSONAL INFORMATION,                         ,HOUSING SERVICES,RDS - Landlord claim on Bond Scheme,Housing
Swale Borough Council,29UM,04/03/2020,1174808,1054.62,ROYAL MAIL GROUP LTD,4138203                  ,PROPERTY SERVICES,Postage,Holding Codes
Swale Borough Council,29UM,04/03/2020,1174764,250.00,SATEDA,                         ,ECONOMY & COMMUNITIES,Grants & Subscriptions,Central Services to the Public
Swale Borough Council,29UM,04/03/2020,1174834,3977.09,SCOTTISH WATER BUSINESS STREAM LTD,SC294924                 ,CONTRACTS,Water - Metered,Environmental and Regulatory Services
Swale Borough Council,29UM,04/03/2020,1174854,405.50,SELECTAMARK SECURITY SYSTEMS PLC,01024280                 ,COMMUNITY SAFETY,Fees and Services,Environmental and Regulatory Services
Swale Borough Council,29UM,04/03/2020,1174837,300.00,SHEPPEY MATTERS,3946296                  ,TOURISM & SPORTS DEVELOPMENT,Grants & Subscriptions,Cultural and Related Services
Swale Borough Council,29UM,04/03/2020,1174794,304.00,SHRED STATION,06359628                 ,PROPERTY SERVICES,Trade Waste-Refuse,Corporate & Democratic Core
Swale Borough Council,29UM,04/03/2020,1174870,300.00,SITTINBOURNE AND KEMSLEY LIGHT RAILWAY,                         ,ECONOMY & COMMUNITIES,Grants & Subscriptions,Central Services to the Public
Swale Borough Council,29UM,04/03/2020,1174882,2343.56,SITTINGBOURNE COMMUNITY RADIO,                         ,ECONOMY & COMMUNITIES,Grants & Subscriptions,Central Services to the Public
Swale Borough Council,29UM,04/03/2020,1174898,3162.19,SOUTH EAST BUILDING CO LTD,1786838                  ,HOUSING SERVICES,Staying Put small repairs (contractors),Housing
Swale Borough Council,29UM,04/03/2020,1175071,129067.74,SPIRIT OF SITTINGBOURNE LLP,OC377168                 ,FINANCIAL SERVICES,Capitalised Fees And Charges,Not used in this Structure
Swale Borough Council,29UM,04/03/2020,1174767,300.00,SWALE COMMUNITY LEISURE LTD,                         ,ECONOMY & COMMUNITIES,Grants & Subscriptions,Central Services to the Public
Swale Borough Council,29UM,04/03/2020,1174832,722.80,SWALE COMMUNITY LEISURE LTD,                         ,TOURISM & SPORTS DEVELOPMENT,Grants & Subscriptions,Cultural and Related Services
Swale Borough Council,29UM,04/03/2020,1174875,400.00,THE AUTISM APPRENTICE CIC,                         ,ECONOMY & COMMUNITIES,Grants & Subscriptions,Central Services to the Public
Swale Borough Council,29UM,04/03/2020,1174428,600.00,THE DOLPHIN SAILING BARGE MUSEUM TRUST,                         ,ECONOMY & COMMUNITIES,Grants & Subscriptions,Central Services to the Public
Swale Borough Council,29UM,04/03/2020,1174809,1739.00,THE OYSTER PARTNERSHIP,05020374                 ,PLANNING SERVICES,Agency/Contract Staff,Internal Trading Cost Centres
Swale Borough Council,29UM,04/03/2020,1174810,1540.00,THE OYSTER PARTNERSHIP,05020374                 ,PLANNING SERVICES,Agency/Contract Staff,Planning and Development Services
Swale Borough Council,29UM,04/03/2020,1174203,2896.88,THE RIVERSIDE HOUSING GROUP LTD,                         ,HOUSING SERVICES,Fees and Services,Housing
Swale Borough Council,29UM,04/03/2020,1174494,401.00,THOMSON REUTERS,1679046                  ,MKS LEGAL SERVICES,"Books, Journals & e - resources",Internal Trading Cost Centres
Swale Borough Council,29UM,04/03/2020,1174953,275.00,THREE TOWNS OFFICE EQUIPMENT LTD,                         ,ENVIRONMENTAL RESPONSE TEAM,Furniture,Internal Trading Cost Centres
Swale Borough Council,29UM,04/03/2020,1174381,420.00,TRAFALGAR TAVERN LTD,07999329                 ,HOUSING SERVICES,B & B - Homelessness Landlord Payments,Housing
Swale Borough Council,29UM,04/03/2020,1174584,1191.00,TRAFALGAR TAVERN LTD,07999329                 ,HOUSING SERVICES,B & B - Homelessness Landlord Payments,Housing
Swale Borough Council,29UM,04/03/2020,1174585,270.00,TRAFALGAR TAVERN LTD,07999329                 ,HOUSING SERVICES,B & B - Homelessness Landlord Payments,Housing
Swale Borough Council,29UM,04/03/2020,1174724,1191.00,TRAFALGAR TAVERN LTD,07999329                 ,HOUSING SERVICES,B & B - Homelessness Landlord Payments,Housing
Swale Borough Council,29UM,04/03/2020,1174869,1230.00,TUNSTALL SCHOOL PARENT TEACHER ASSOC.,                         ,ECONOMY & COMMUNITIES,Grants & Subscriptions,Central Services to the Public
Swale Borough Council,29UM,04/03/2020,1174677,-32.02,UNISON,                         ,HUMAN RESOURCES,Payroll - Unison Deductions Admin Charge,Corporate & Democratic Core
Swale Borough Council,29UM,04/03/2020,1174807,879.00,WE BRAND IT,                         ,TOURISM & SPORTS DEVELOPMENT,Equipment Purchase,Cultural and Related Services
Swale Borough Council,29UM,04/03/2020,1174866,300.00,WEST FAVERSHAM COMMUNITY ASSOCIATION,                         ,ECONOMY & COMMUNITIES,Grants & Subscriptions,Central Services to the Public
Swale Borough Council,29UM,04/03/2020,1174397,587.60,WHISTL UK LIMITED,04417047                 ,REVENUE SERVICES,Postage,Central Services to the Public
Swale Borough Council,29UM,04/03/2020,1174397,293.79,WHISTL UK LIMITED,04417047                 ,REVENUE SERVICES,Postage,Housing
Swale Borough Council,29UM,04/03/2020,1174397,2.86,WHISTL UK LIMITED,04417047                 ,LEISURE & OPEN SPACES,Postage,Internal Trading Cost Centres
Swale Borough Council,29UM,04/03/2020,1174397,1.43,WHISTL UK LIMITED,04417047                 ,CAR PARKS,Postage,Internal Trading Cost Centres
Swale Borough Council,29UM,04/03/2020,1174397,183.78,WHISTL UK LIMITED,04417047                 ,PROPERTY SERVICES,Postage,Holding Codes
Swale Borough Council,29UM,04/03/2020,1174397,253.11,WHISTL UK LIMITED,04417047                 ,DEMOCRATIC & ELECTORAL SERVICES,Postage,Central Services to the Public
Swale Borough Council,29UM,04/03/2020,1174579,680.20,WHISTL UK LIMITED,04417047                 ,REVENUE SERVICES,Postage,Central Services to the Public
Swale Borough Council,29UM,04/03/2020,1174579,340.09,WHISTL UK LIMITED,04417047                 ,REVENUE SERVICES,Postage,Housing
Swale Borough Council,29UM,04/03/2020,1174579,2.98,WHISTL UK LIMITED,04417047                 ,LEISURE & OPEN SPACES,Postage,Internal Trading Cost Centres
Swale Borough Council,29UM,04/03/2020,1174579,3.31,WHISTL UK LIMITED,04417047                 ,CAR PARKS,Postage,Internal Trading Cost Centres
Swale Borough Council,29UM,04/03/2020,1174579,162.29,WHISTL UK LIMITED,04417047                 ,PROPERTY SERVICES,Postage,Holding Codes
Swale Borough Council,29UM,04/03/2020,1174579,114.17,WHISTL UK LIMITED,04417047                 ,DEMOCRATIC & ELECTORAL SERVICES,Postage,Central Services to the Public
Swale Borough Council,29UM,04/03/2020,1174888,360.00,WILLOW TREE HOME SOLUTIONS LTD,                         ,HOUSING SERVICES,Staying Put small repairs (contractors),Housing
Swale Borough Council,29UM,04/03/2020,1174894,348.00,WILLOW TREE HOME SOLUTIONS LTD,                         ,HOUSING SERVICES,Staying Put small repairs (contractors),Housing
Swale Borough Council,29UM,04/03/2020,1174895,260.00,WILLOW TREE HOME SOLUTIONS LTD,                         ,HOUSING SERVICES,Staying Put small repairs (contractors),Housing
Swale Borough Council,29UM,04/03/2020,1174896,550.00,WILLOW TREE HOME SOLUTIONS LTD,                         ,HOUSING SERVICES,Staying Put small repairs (contractors),Housing
Swale Borough Council,29UM,04/03/2020,1174897,565.00,WILLOW TREE HOME SOLUTIONS LTD,                         ,HOUSING SERVICES,Staying Put small repairs (contractors),Housing
Swale Borough Council,29UM,04/03/2020,1175043,7072.28,WILLOW TREE HOME SOLUTIONS LTD,                         ,HOUSING SERVICES,Housing Renovation Grants,Not used in this Structure
Swale Borough Council,29UM,04/03/2020,1174872,9999.60,WYBONE LTD,952455                   ,CONTRACTS,Equipment Purchase,Environmental and Regulatory Services
Swale Borough Council,29UM,04/03/2020,1175072,60500.00,WYCOMBE DISTRICT COUNCIL (DT),                         ,FINANCIAL SERVICES,Interest Payable,Financing and Investment Income
Swale Borough Council,29UM,04/03/2020,1174886,1150.00,WYNSDALE WASTE MANAGEMENT LTD,07837119                 ,HOUSING SERVICES,Staying Put small repairs (contractors),Housing
Swale Borough Council,29UM,04/03/2020,1174887,295.00,WYNSDALE WASTE MANAGEMENT LTD,07837119                 ,HOUSING SERVICES,Staying Put small repairs (contractors),Housing
Swale Borough Council,29UM,04/03/2020,1174932,1235.00,WYNSDALE WASTE MANAGEMENT LTD,07837119                 ,HOUSING SERVICES,Staying Put small repairs (contractors),Housing
Swale Borough Council,29UM,04/03/2020,1174172,2299.54,X - NEOPOST LIMITED,02658324                 ,REVENUE SERVICES,Fees and Services,Housing
Swale Borough Council,29UM,04/03/2020,1174556,1108.00,X-PARK AVENUE RECRUITMENT LTD,10370450                 ,HOUSING SERVICES,Agency/Contract Staff,Housing
Swale Borough Council,29UM,04/03/2020,1174581,1093.60,X-PARK AVENUE RECRUITMENT LTD,10370450                 ,HOUSING SERVICES,Agency/Contract Staff,Housing
Swale Borough Council,29UM,04/03/2020,1174756,1073.00,X-PARK AVENUE RECRUITMENT LTD,10370450                 ,HOUSING SERVICES,Agency/Contract Staff,Housing
Swale Borough Council,29UM,04/03/2020,1174757,883.20,X-PARK AVENUE RECRUITMENT LTD,10370450                 ,HOUSING SERVICES,Agency/Contract Staff,Housing
Swale Borough Council,29UM,11/03/2020,1175154,1688.30,ACORN MAINTENANCE SERVICES,3546898                  ,HOUSING SERVICES,Staying Put small repairs (contractors),Housing
Swale Borough Council,29UM,11/03/2020,1175101,222.17,ADELANTE SOFTWARE LTD,4450760                  ,REVENUE SERVICES,Commission Paid,Central Services to the Public
Swale Borough Council,29UM,11/03/2020,1175101,181.76,ADELANTE SOFTWARE LTD,4450760                  ,EXCHEQUER,Commission Paid,Internal Trading Cost Centres
Swale Borough Council,29UM,11/03/2020,1175102,1119.86,ALLPAY LTD,02933191                 ,REVENUE SERVICES,Bank Charges Pay Point,Central Services to the Public
Swale Borough Council,29UM,11/03/2020,1175102,24.73,ALLPAY LTD,02933191                 ,REVENUE SERVICES,Bank Charges Pay Point,Housing
Swale Borough Council,29UM,11/03/2020,1175102,23.27,ALLPAY LTD,02933191                 ,EXCHEQUER,Bank Charges Pay Point,Internal Trading Cost Centres
Swale Borough Council,29UM,11/03/2020,1174984,91.21,ALLSTAR BUSINESS SOLUTIONS LTD - (DT),1073098                  ,SERVICE DELIVERY,Petrol/Derv & Oil,Cultural and Related Services
Swale Borough Council,29UM,11/03/2020,1174984,237.86,ALLSTAR BUSINESS SOLUTIONS LTD - (DT),1073098                  ,ENVIRONMENTAL RESPONSE TEAM,Fuel For Contract Vehicles,Internal Trading Cost Centres
Swale Borough Council,29UM,11/03/2020,1174984,81.27,ALLSTAR BUSINESS SOLUTIONS LTD - (DT),1073098                  ,LEISURE & OPEN SPACES,Fuel For Contract Vehicles,Cultural and Related Services
Swale Borough Council,29UM,11/03/2020,1174984,54.53,ALLSTAR BUSINESS SOLUTIONS LTD - (DT),1073098                  ,ENVIRONMENTAL RESPONSE TEAM,Fuel For Contract Vehicles,Environmental and Regulatory Services
Swale Borough Council,29UM,11/03/2020,1174984,76.93,ALLSTAR BUSINESS SOLUTIONS LTD - (DT),1073098                  ,HOUSING SERVICES,Fuel For Contract Vehicles,Housing
Swale Borough Council,29UM,11/03/2020,1175162,30000.00,BIFFA MUNICIPAL SERVICES LTD,4321212                  ,CONTRACTS,Private Contractors,Environmental and Regulatory Services
Swale Borough Council,29UM,11/03/2020,1174913,3303.11,BLENWOOD LTD,4383277                  ,LEISURE & OPEN SPACES,Grounds Maint Suspense,Cultural and Related Services
Swale Borough Council,29UM,11/03/2020,1174914,105326.14,BLENWOOD LTD,4383277                  ,LEISURE & OPEN SPACES,Grounds Maint Suspense,Cultural and Related Services
Swale Borough Council,29UM,11/03/2020,1174681,305.50,C S MITCHELL LTD,04143041                 ,SERVICE DELIVERY,Private Contractors - CIS,Environmental and Regulatory Services
Swale Borough Council,29UM,11/03/2020,1175169,6170.01,COBALT TELEPHONE TECHNOLOGIES LIMITED,03151938                 ,CAR PARKS,Fees - Licence,Highway and Transport Services
Swale Borough Council,29UM,11/03/2020,1174961,418.03,COMMERCIAL SERVICES TRADING LTD,5858178                  ,SERVICE DELIVERY,Hire & Leases,Cultural and Related Services
Swale Borough Council,29UM,11/03/2020,1175036,5500.00,COOMBS (CANTERBURY) Ltd.,2040829                  ,LEISURE & OPEN SPACES,Maintenance - Grounds,Cultural and Related Services
Swale Borough Council,29UM,11/03/2020,1175036,1100.00,COOMBS (CANTERBURY) Ltd.,2040829                  ,LEISURE & OPEN SPACES,Maintenance - Grounds,Cultural and Related Services
Swale Borough Council,29UM,11/03/2020,1175075,1523.65,DHA PLANNING,2683290                  ,FINANCIAL SERVICES,Costs of Disposal,Other Operating Expenditure
Swale Borough Council,29UM,11/03/2020,1175139,1293.57,DHA PLANNING,2683290                  ,FINANCIAL SERVICES,Costs of Disposal,Other Operating Expenditure
Swale Borough Council,29UM,11/03/2020,1175040,440.00,DISCLOSURE & BARRING SERVICE (DT),                         ,LICENCING,Fees and Services,Environmental and Regulatory Services
Swale Borough Council,29UM,11/03/2020,1175049,400.00,EASTCHURCH AVIATION MUSEUM,                         ,ECONOMY & COMMUNITIES,Grants & Subscriptions,Central Services to the Public
Swale Borough Council,29UM,11/03/2020,1175035,62500.00,ENVIRO TECHNOLOGY SERVICES LTD,1726773                  ,MKS ENVIRONMENTAL SERVICES,Equipment,Not used in this Structure
Swale Borough Council,29UM,11/03/2020,1174999,4362.50,ENVITECH EUROPE LTD,SC367372                 ,MKS ENVIRONMENTAL SERVICES,Private Contractors,Environmental and Regulatory Services
Swale Borough Council,29UM,11/03/2020,1175027,350.00,FAVERSHAM SWIMMING POOL MNGMT COMM LTD,                         ,ECONOMY & COMMUNITIES,Grants & Subscriptions,Central Services to the Public
Swale Borough Council,29UM,11/03/2020,1175053,300.00,FAVERSHAM TOWN FOOTBALL CLUB LIMITED,                         ,TOURISM & SPORTS DEVELOPMENT,Grants & Subscriptions,Cultural and Related Services
Swale Borough Council,29UM,11/03/2020,1174774,16998.00,FOXLEYS LTD,3385956                  ,FINANCIAL SERVICES,STC - Capital Constuction - CIS Works,Not used in this Structure
Swale Borough Council,29UM,11/03/2020,1174945,1051.00,GALTEC SOLUTIONS LTD,5209602                  ,REVENUE SERVICES,Computer Equipment & Materials,Central Services to the Public
Swale Borough Council,29UM,11/03/2020,1174946,525.50,GALTEC SOLUTIONS LTD,5209602                  ,REVENUE SERVICES,Computer Equipment & Materials,Housing
Swale Borough Council,29UM,11/03/2020,1175033,1500.00,HARTLIP VILLAGE HALL,                         ,EMERGENCY PLANNING,Grants & Subscriptions,Central Services to the Public
Swale Borough Council,29UM,11/03/2020,1175092,400.00,HERNHILL PARISH COUNCIL,                         ,ECONOMY & COMMUNITIES,Grants & Subscriptions,Central Services to the Public
Swale Borough Council,29UM,11/03/2020,1175240,5305.50,HIGHER ELEVATION LTD,4078005                  ,HOUSING SERVICES,Housing Renovation Grants,Not used in this Structure
Swale Borough Council,29UM,11/03/2020,1175018,1550.00,HORNHILL ACTIVITY CENTRE,                         ,ENVIRONMENTAL RESPONSE TEAM,Grants & Subscriptions,Planning and Development Services
Swale Borough Council,29UM,11/03/2020,1175239,475.00,HUBBARD & HOUGHTON LTD,                         ,HOUSING SERVICES,Housing Renovation Grants,Not used in this Structure
Swale Borough Council,29UM,11/03/2020,1174776,2840.00,INFORM CPI LTD,                         ,REVENUE SERVICES,NNDR Additional Rateable Values,Central Services to the Public
Swale Borough Council,29UM,11/03/2020,1175241,7500.18,J & D SYSTEMS,                         ,HOUSING SERVICES,Housing Renovation Grants,Not used in this Structure
Swale Borough Council,29UM,11/03/2020,1175242,817.40,J & D SYSTEMS,                         ,HOUSING SERVICES,Housing Renovation Grants,Not used in this Structure
Swale Borough Council,29UM,11/03/2020,1175243,7594.73,J & D SYSTEMS,                         ,HOUSING SERVICES,Housing Renovation Grants,Not used in this Structure
Swale Borough Council,29UM,11/03/2020,1174495,1500.00,J N CLEARANCE,                         ,CONTRACTS,Variations To Contract,Environmental and Regulatory Services
Swale Borough Council,29UM,11/03/2020,1174495,375.00,J N CLEARANCE,                         ,CONTRACTS,Equipment Maintenance,Environmental and Regulatory Services
Swale Borough Council,29UM,11/03/2020,1174495,200.00,J N CLEARANCE,                         ,CONTRACTS,Equipment Maintenance,Environmental and Regulatory Services
Swale Borough Council,29UM,11/03/2020,1174495,700.00,J N CLEARANCE,                         ,CONTRACTS,"Clearance Of Waste,Fly Tipping",Environmental and Regulatory Services
Swale Borough Council,29UM,11/03/2020,1174495,600.00,J N CLEARANCE,                         ,CONTRACTS,Private Contractors,Environmental and Regulatory Services
Swale Borough Council,29UM,11/03/2020,1174495,75.00,J N CLEARANCE,                         ,CONTRACTS,"Clearance Of Waste,Fly Tipping",Environmental and Regulatory Services
Swale Borough Council,29UM,11/03/2020,1175052,1600.00,JOINING HANDS JOINING HEARTS,                         ,ECONOMY & COMMUNITIES,Grants & Subscriptions,Central Services to the Public
Swale Borough Council,29UM,11/03/2020,1174990,1450.00,KAREBEAR KENNELS LTD,                         ,ENVIRONMENTAL RESPONSE TEAM,Kennelling Of Dogs,Environmental and Regulatory Services
Swale Borough Council,29UM,11/03/2020,1174990,-55.00,KAREBEAR KENNELS LTD,                         ,ENVIRONMENTAL RESPONSE TEAM,Income collected by Dog Kennels,Environmental and Regulatory Services
Swale Borough Council,29UM,11/03/2020,1174722,2121.00,KENT COUNTY COUNCIL,                         ,SERVICE DELIVERY,Private Contractors - CIS,Environmental and Regulatory Services
Swale Borough Council,29UM,11/03/2020,1175025,200000.00,KENT COUNTY COUNCIL,                         ,FINANCIAL SERVICES,Capital Grants,Not used in this Structure
Swale Borough Council,29UM,11/03/2020,1175213,30750.00,KENT COUNTY COUNCIL,                         ,FINANCIAL SERVICES,Agency/Contract Staff,Internal Trading Cost Centres
Swale Borough Council,29UM,11/03/2020,1175184,495.00,LEMAR LIMITED,04350292                 ,SERVICE DELIVERY,Private Contractors - CIS,Highway and Transport Services
Swale Borough Council,29UM,11/03/2020,1175184,300.00,LEMAR LIMITED,04350292                 ,SERVICE DELIVERY,Private Contractors - CIS,Highway and Transport Services
Swale Borough Council,29UM,11/03/2020,1175185,1000.00,LEMAR LIMITED,04350292                 ,SERVICE DELIVERY,Private Contractors - CIS,Highway and Transport Services
Swale Borough Council,29UM,11/03/2020,1175185,1007.50,LEMAR LIMITED,04350292                 ,SERVICE DELIVERY,Private Contractors - CIS,Highway and Transport Services
Swale Borough Council,29UM,11/03/2020,1175186,200.00,LEMAR LIMITED,04350292                 ,CAR PARKS,Maintenance - Grounds,Highway and Transport Services
Swale Borough Council,29UM,11/03/2020,1175186,100.00,LEMAR LIMITED,04350292                 ,CAR PARKS,Maintenance - Grounds,Highway and Transport Services
Swale Borough Council,29UM,11/03/2020,1175113,330.00,LEWES DISTRICT COUNCIL,                         ,DEMOCRATIC & ELECTORAL SERVICES,Grants & Subscriptions,Corporate & Democratic Core
Swale Borough Council,29UM,11/03/2020,1174204,64886.00,LINK PROPERTY GROUP,                         ,HOUSING SERVICES,NL (Nightly Lets) - Homelessness Landlord Payments,Housing
Swale Borough Council,29UM,11/03/2020,1174924,945.00,LUSHLAND,4289261                  ,PLANNING SERVICES,Fees and Services,Planning and Development Services
Swale Borough Council,29UM,11/03/2020,1174977,252.21,LYRECO UK LTD,                         ,EXCHEQUER,Stationery,Internal Trading Cost Centres
Swale Borough Council,29UM,11/03/2020,1174489,52870.00,MAIDSTONE BOROUGH COUNCIL,                         ,HUMAN RESOURCES,MKS Charges for HR Service,Internal Trading Cost Centres
Swale Borough Council,29UM,11/03/2020,1174607,129434.14,MAIDSTONE BOROUGH COUNCIL,                         ,MKS ICT,MKS Charges for ICT,Internal Trading Cost Centres
Swale Borough Council,29UM,11/03/2020,1175160,313.00,MAIDSTONE BOROUGH COUNCIL,                         ,MKS ENVIRONMENTAL SERVICES,Fees & Charges Non Business,Environmental and Regulatory Services
Swale Borough Council,29UM,11/03/2020,1175187,800.00,MAIDSTONE BOROUGH COUNCIL,                         ,MKS ENVIRONMENTAL SERVICES,Funeral Expenses,Environmental and Regulatory Services
Swale Borough Council,29UM,11/03/2020,1174933,3924.60,MARTIN CRANFIELD ASSOCIATES LIMITED,05210576                 ,MKS ENVIRONMENTAL SERVICES,Private Contractors,Environmental and Regulatory Services
Swale Borough Council,29UM,11/03/2020,1175098,2000.00,MILTON CREEK TRUST,                         ,ECONOMY & COMMUNITIES,Grants & Subscriptions,Central Services to the Public
Swale Borough Council,29UM,11/03/2020,1175078,18528.62,MONITOR CLEANING SERVICES LTD,02526388                 ,CONTRACTS,Private Contractors,Environmental and Regulatory Services
Swale Borough Council,29UM,11/03/2020,1175178,10339.00,MOTORLINE KENT LTD,                         ,FINANCIAL SERVICES,Payments in Year,Ledger/Suspense Codes
Swale Borough Council,29UM,11/03/2020,1175238,10892.83,REDACTED PERSONAL INFORMATION,                         ,HOUSING SERVICES,Housing Renovation Grants,Not used in this Structure
Swale Borough Council,29UM,11/03/2020,1175008,950.00,REDACTED PERSONAL INFORMATION,                         ,ENVIRONMENTAL RESPONSE TEAM,Legal Fees,Planning and Development Services
Swale Borough Council,29UM,11/03/2020,1175008,190.00,REDACTED PERSONAL INFORMATION,                         ,ENVIRONMENTAL RESPONSE TEAM,Legal Fees,Planning and Development Services
Swale Borough Council,29UM,11/03/2020,1175093,500.00,MS SWALE,                         ,ECONOMY & COMMUNITIES,Grants & Subscriptions,Central Services to the Public
Swale Borough Council,29UM,11/03/2020,1175181,305.74,NPOWER,                         ,CAR PARKS,Electricity,Highway and Transport Services
Swale Borough Council,29UM,11/03/2020,1174137,118530.00,OPTIVO,09100835                 ,HOUSING SERVICES,Optivo - Homelessness Landlord Payments,Housing
Swale Borough Council,29UM,11/03/2020,1174849,2416.72,PORTAKABIN LIMITED,685303                   ,LEISURE & OPEN SPACES,Hire Of Premises,Cultural and Related Services
Swale Borough Council,29UM,11/03/2020,1174988,290.33,PORTAKABIN LIMITED,685303                   ,LEISURE & OPEN SPACES,Maintenance - Grounds,Environmental and Regulatory Services
Swale Borough Council,29UM,11/03/2020,1175022,1809.01,PS BREASTFEEDING CIC,                         ,ECONOMY & COMMUNITIES,Grants & Subscriptions,Central Services to the Public
Swale Borough Council,29UM,11/03/2020,1175029,1325.00,QUEENBOROUGH TOWN COMMUNITY CENTRE LTD,                         ,ECONOMY & COMMUNITIES,Grants & Subscriptions,Central Services to the Public
Swale Borough Council,29UM,11/03/2020,1175024,1000.00,RAYBEL CHARTERS CIC,                         ,ECONOMY & COMMUNITIES,Grants & Subscriptions,Central Services to the Public
Swale Borough Council,29UM,11/03/2020,1175097,705.60,REVOLUTION EVENTS LTD,                         ,ECONOMIC DEVELOPMENT,Fees and Services,Planning and Development Services
Swale Borough Council,29UM,11/03/2020,1174989,502.64,ROYAL MAIL GROUP LTD,4138203                  ,REVENUE SERVICES,Postage,Central Services to the Public
Swale Borough Council,29UM,11/03/2020,1174889,893.50,RSP RAIL TRAVEL ACCOUNT - (DT),                         ,FINANCIAL SERVICES,Travel Warrants (Staff Travel),Internal Trading Cost Centres
Swale Borough Council,29UM,11/03/2020,1175004,17510.83,SERCO LEISURE OPERATING LIMITED,04687478                 ,LEISURE & OPEN SPACES,Contracts,Cultural and Related Services
Swale Borough Council,29UM,11/03/2020,1175089,36.03,SHAW AND SONS LTD,                         ,DEMOCRATIC & ELECTORAL SERVICES,Stationery,Central Services to the Public
Swale Borough Council,29UM,11/03/2020,1175089,1388.80,SHAW AND SONS LTD,                         ,DEMOCRATIC & ELECTORAL SERVICES,Stationery,Ledger/Suspense Codes
Swale Borough Council,29UM,11/03/2020,1175094,500.00,SHEERNESS TOWN TEAM,                         ,ECONOMY & COMMUNITIES,Grants & Subscriptions,Central Services to the Public
Swale Borough Council,29UM,11/03/2020,1175019,500.00,SHEPPEY COASTAL PROTECTION GROUP LTD,                         ,ECONOMY & COMMUNITIES,Grants & Subscriptions,Central Services to the Public
Swale Borough Council,29UM,11/03/2020,1175224,1250.00,SHEPPEY MATTERS,3946296                  ,ECONOMY & COMMUNITIES,Grants & Subscriptions,Central Services to the Public
Swale Borough Council,29UM,11/03/2020,1175222,350.00,SHEPPEY RUGBY FOOTBALL CLUB LTD,                         ,ECONOMY & COMMUNITIES,Grants & Subscriptions,Central Services to the Public
Swale Borough Council,29UM,11/03/2020,1175016,800.00,SHEPPEY WAR MEMORIAL TRUST,                         ,ECONOMY & COMMUNITIES,Grants & Subscriptions,Central Services to the Public
Swale Borough Council,29UM,11/03/2020,1175006,582.00,SODEXO MOTIVATION SOLUTIONS UK LTD,02680629                 ,HUMAN RESOURCES,Payments in Year,Ledger/Suspense Codes
Swale Borough Council,29UM,11/03/2020,1175100,2346.00,SOLENT RIB CHARTERS LTD,4198160                  ,LEISURE & OPEN SPACES,Construction,Not used in this Structure
Swale Borough Council,29UM,11/03/2020,1175134,2603.50,SOLON SECURITY,03065075                 ,COMMUNITY SAFETY,Fees and Services,Planning and Development Services
Swale Borough Council,29UM,11/03/2020,1175207,750.00,SQUARECUBE ARTISANS,                         ,ECONOMY & COMMUNITIES,Communities Fund Expenditure,Ledger/Suspense Codes
Swale Borough Council,29UM,11/03/2020,1175223,250.00,SWALE ACADEMIES TRUST,                         ,TOURISM & SPORTS DEVELOPMENT,Grants & Subscriptions,Cultural and Related Services
Swale Borough Council,29UM,11/03/2020,1175028,400.00,THE AVENUE THEATRE,                         ,ECONOMY & COMMUNITIES,Grants & Subscriptions,Central Services to the Public
Swale Borough Council,29UM,11/03/2020,1175208,4133.00,THE BARNYARD,                         ,ECONOMY & COMMUNITIES,Communities Fund Expenditure,Ledger/Suspense Codes
Swale Borough Council,29UM,11/03/2020,1175023,900.00,THE SHEPPEY HALL TRUST,                         ,ECONOMY & COMMUNITIES,Grants & Subscriptions,Central Services to the Public
Swale Borough Council,29UM,11/03/2020,1175237,1000.00,TPS BUILDING SERVICES,                         ,HOUSING SERVICES,Housing Renovation Grants,Not used in this Structure
Swale Borough Council,29UM,11/03/2020,1174992,420.00,TRAFALGAR TAVERN LTD,07999329                 ,HOUSING SERVICES,B & B - Homelessness Landlord Payments,Housing
Swale Borough Council,29UM,11/03/2020,1174993,1041.00,TRAFALGAR TAVERN LTD,07999329                 ,HOUSING SERVICES,B & B - Homelessness Landlord Payments,Housing
Swale Borough Council,29UM,11/03/2020,1174994,1071.00,TRAFALGAR TAVERN LTD,07999329                 ,HOUSING SERVICES,B & B - Homelessness Landlord Payments,Housing
Swale Borough Council,29UM,11/03/2020,1174997,1281.00,TRAFALGAR TAVERN LTD,07999329                 ,HOUSING SERVICES,B & B - Homelessness Landlord Payments,Housing
Swale Borough Council,29UM,11/03/2020,1175177,250.00,TREE FOLK,                         ,LEISURE & OPEN SPACES,Maintenance - Grounds,Cultural and Related Services
Swale Borough Council,29UM,11/03/2020,1175244,3982.86,TWENTY4SEVEN PROPERTY MAINT LTD,                         ,HOUSING SERVICES,Housing Renovation Grants,Not used in this Structure
Swale Borough Council,29UM,11/03/2020,1174853,1554.00,VIVID RESOURCING LIMITED,06459262                 ,PLANNING SERVICES,Agency/Contract Staff,Internal Trading Cost Centres
Swale Borough Council,29UM,11/03/2020,1175152,438.05,VR SANI-CO LTD,3588359                  ,CONTRACTS,Hygiene Service Contracts,Environmental and Regulatory Services
Swale Borough Council,29UM,11/03/2020,1174850,1550.00,WEALD WOODSCAPES LTD,8028446                  ,LEISURE & OPEN SPACES,Maintenance - Grounds,Cultural and Related Services
Swale Borough Council,29UM,11/03/2020,1175133,1216.00,WILLOW TREE HOME SOLUTIONS LTD,                         ,HOUSING SERVICES,Staying Put small repairs (contractors),Housing
Swale Borough Council,29UM,11/03/2020,1175271,1378.50,WORLDPAY (DT),07316500                 ,REVENUE SERVICES,Commission Paid,Central Services to the Public
Swale Borough Council,29UM,11/03/2020,1175271,78.76,WORLDPAY (DT),07316500                 ,REVENUE SERVICES,Commission Paid,Central Services to the Public
Swale Borough Council,29UM,11/03/2020,1175271,511.94,WORLDPAY (DT),07316500                 ,EXCHEQUER,Commission Paid,Internal Trading Cost Centres
Swale Borough Council,29UM,11/03/2020,1175271,2.00,WORLDPAY (DT),07316500                 ,EXCHEQUER,Commission Paid,Internal Trading Cost Centres
Swale Borough Council,29UM,11/03/2020,1175275,1288.63,WORLDPAY (DT),07316500                 ,REVENUE SERVICES,Commission Paid,Central Services to the Public
Swale Borough Council,29UM,11/03/2020,1175275,63.60,WORLDPAY (DT),07316500                 ,REVENUE SERVICES,Commission Paid,Central Services to the Public
Swale Borough Council,29UM,11/03/2020,1175275,15.90,WORLDPAY (DT),07316500                 ,REVENUE SERVICES,Commission Paid,Housing
Swale Borough Council,29UM,11/03/2020,1175275,15.90,WORLDPAY (DT),07316500                 ,EXCHEQUER,Commission Paid,Internal Trading Cost Centres
Swale Borough Council,29UM,11/03/2020,1175275,206.70,WORLDPAY (DT),07316500                 ,EXCHEQUER,Commission Paid,Internal Trading Cost Centres
Swale Borough Council,29UM,11/03/2020,1175275,6.61,WORLDPAY (DT),07316500                 ,EXCHEQUER,Commission Paid,Internal Trading Cost Centres
Swale Borough Council,29UM,11/03/2020,1174950,550.00,WPS UNITED KINGDOM LTD,04211140                 ,MULTISTOREY CAR PARK,Fees and Services,Highway and Transport Services
Swale Borough Council,29UM,11/03/2020,1174738,7357.00,WYNNE-WILLIAMS ASSOCIATES LTD,5148770                  ,LEISURE & OPEN SPACES,Capitalised Fees And Charges,Not used in this Structure
Swale Borough Council,29UM,17/03/2020,1174959,546.00,A T BLINDS,                         ,PROPERTY SERVICES,Non-Planned Building Maintenance,Corporate & Democratic Core
Swale Borough Council,29UM,17/03/2020,1174963,530.00,A T BLINDS,                         ,PROPERTY SERVICES,Non-Planned Building Maintenance,Corporate & Democratic Core
Swale Borough Council,29UM,17/03/2020,1175366,690.00,ACORN MAINTENANCE SERVICES,3546898                  ,HOUSING SERVICES,Staying Put small repairs (contractors),Housing
Swale Borough Council,29UM,17/03/2020,1175291,42500.00,BLACK OFFICE (HOLDINGS) LIMITED,                         ,CAR PARKS,Rent,Highway and Transport Services
Swale Borough Council,29UM,17/03/2020,1175287,1080.00,BLEAN TREE CARE,                         ,LEISURE & OPEN SPACES,Tree Maintenance,Cultural and Related Services
Swale Borough Council,29UM,17/03/2020,1175082,51419.46,BOBBING VILLAGE HALL FUND,                         ,PLANNING SERVICES,Payments in Year,Ledger/Suspense Codes
Swale Borough Council,29UM,17/03/2020,1175297,300.00,REDACTED PERSONAL INFORMATION,                         ,DEMOCRATIC & ELECTORAL SERVICES,Hire Of Premises,Ledger/Suspense Codes
Swale Borough Council,29UM,17/03/2020,1175335,38736.30,DSSL GROUP LTD,6993052                  ,COMMUNITY SAFETY,Fees and Services,Environmental and Regulatory Services
Swale Borough Council,29UM,17/03/2020,1175204,10869.94,ENVEVO LIMITED,SC619434                 ,CAR PARKS,Construction,Not used in this Structure
Swale Borough Council,29UM,17/03/2020,1175194,3118.00,FIRST STOP HOUSING SOLUTION LTD,                         ,HOUSING SERVICES,NL (Nightly Lets) - Homelessness Landlord Payments,Housing
Swale Borough Council,29UM,17/03/2020,1175362,2275.00,GALTEC SOLUTIONS LTD,5209602                  ,MKS ICT,Payments in Year,Ledger/Suspense Codes
Swale Borough Council,29UM,17/03/2020,1174900,59954.49,GRAVITY ENGINEERING LTD,04812075                 ,DIRECTOR OF REGENERATION,Capital Constuction - CIS Works,Not used in this Structure
Swale Borough Council,29UM,17/03/2020,1175292,250.00,HIGHSTED GRAMMAR SCHOOL,                         ,TOURISM & SPORTS DEVELOPMENT,Grants & Subscriptions,Cultural and Related Services
Swale Borough Council,29UM,17/03/2020,1175363,2500.00,HMCTS,                         ,CAR PARKS,Parking Adjudication Fees,Highway and Transport Services
Swale Borough Council,29UM,17/03/2020,1175363,2500.00,HMCTS,                         ,CAR PARKS,Parking Adjudication Fees,Highway and Transport Services
Swale Borough Council,29UM,17/03/2020,1174716,1045.00,INTEGRITY PRINT LTD,GB927217815              ,CAR PARKS,External Permit Printing,Highway and Transport Services
Swale Borough Council,29UM,17/03/2020,1175302,250.00,KENT COUNTY COUNCIL,                         ,DEMOCRATIC & ELECTORAL SERVICES,Hire Of Premises,Ledger/Suspense Codes
Swale Borough Council,29UM,17/03/2020,1175281,2947.30,KENT COUNTY COUNCIL (KCS),                         ,PROPERTY SERVICES,Gas,Corporate & Democratic Core
Swale Borough Council,29UM,17/03/2020,1175345,3367.00,KIRAN REARDON PROPERTY SERVICES,                         ,HOUSING SERVICES,NL (Nightly Lets) - Homelessness Landlord Payments,Housing
Swale Borough Council,29UM,17/03/2020,1175301,250.00,LANSDOWNE PRIMARY SCHOOL,                         ,DEMOCRATIC & ELECTORAL SERVICES,Hire Of Premises,Ledger/Suspense Codes
Swale Borough Council,29UM,17/03/2020,1175325,600.00,LEMAR LIMITED,04350292                 ,SERVICE DELIVERY,Private Contractors - CIS,Highway and Transport Services
Swale Borough Council,29UM,17/03/2020,1175325,210.00,LEMAR LIMITED,04350292                 ,SERVICE DELIVERY,Private Contractors - CIS,Highway and Transport Services
Swale Borough Council,29UM,17/03/2020,1175326,200.00,LEMAR LIMITED,04350292                 ,CAR PARKS,Maintenance - Grounds,Highway and Transport Services
Swale Borough Council,29UM,17/03/2020,1175326,50.00,LEMAR LIMITED,04350292                 ,CAR PARKS,Maintenance - Grounds,Highway and Transport Services
Swale Borough Council,29UM,17/03/2020,1175327,500.00,LEMAR LIMITED,04350292                 ,SERVICE DELIVERY,Private Contractors - CIS,Highway and Transport Services
Swale Borough Council,29UM,17/03/2020,1175327,445.00,LEMAR LIMITED,04350292                 ,SERVICE DELIVERY,Private Contractors - CIS,Highway and Transport Services
Swale Borough Council,29UM,17/03/2020,1175378,508.19,LLOYDS BANK - (DT),                         ,FINANCIAL SERVICES,Bank Charges,Corporate & Democratic Core
Swale Borough Council,29UM,17/03/2020,1175236,499.00,LONDON DEVELOPMENT EVENTS LTD,05994382                 ,ECONOMY & COMMUNITIES,Conference,Internal Trading Cost Centres
Swale Borough Council,29UM,17/03/2020,1174979,735.00,LYRECO UK LTD,                         ,PROPERTY SERVICES,Paper,Internal Trading Cost Centres
Swale Borough Council,29UM,17/03/2020,1175088,952.00,MAGEES GUESTHOUSE,                         ,HOUSING SERVICES,B & B - Homelessness Landlord Payments,Housing
Swale Borough Council,29UM,17/03/2020,1175088,420.00,MAGEES GUESTHOUSE,                         ,HOUSING SERVICES,B & B - Homelessness Landlord Payments,Housing
Swale Borough Council,29UM,17/03/2020,1175286,875.00,MAGEES GUESTHOUSE,                         ,HOUSING SERVICES,B & B - Homelessness Landlord Payments,Housing
Swale Borough Council,29UM,17/03/2020,1175286,896.00,MAGEES GUESTHOUSE,                         ,HOUSING SERVICES,B & B - Homelessness Landlord Payments,Housing
Swale Borough Council,29UM,17/03/2020,1175338,2175.94,MAIDSTONE BOROUGH COUNCIL,                         ,MKS ICT,Computer Equipment & Materials,Internal Trading Cost Centres
Swale Borough Council,29UM,17/03/2020,1175338,1375.00,MAIDSTONE BOROUGH COUNCIL,                         ,MKS ICT,Computer Equipment & Materials,Internal Trading Cost Centres
Swale Borough Council,29UM,17/03/2020,1175112,13668.84,MATRIX SCM LTD,2227962                  ,HUMAN RESOURCES,Agency/Contract Staff,Internal Trading Cost Centres
Swale Borough Council,29UM,17/03/2020,1175315,10714.55,MATRIX SCM LTD,2227962                  ,HUMAN RESOURCES,Agency/Contract Staff,Internal Trading Cost Centres
Swale Borough Council,29UM,17/03/2020,1174702,835.00,MAYLOW CONSTRUCTION LTD,                         ,LEISURE & OPEN SPACES,Maintenance - Grounds,Cultural and Related Services
Swale Borough Council,29UM,17/03/2020,1175285,276.00,MAYLOW CONSTRUCTION LTD,                         ,LEISURE & OPEN SPACES,Construction,Not used in this Structure
Swale Borough Council,29UM,17/03/2020,1175386,431.00,MAYLOW CONSTRUCTION LTD,                         ,LEISURE & OPEN SPACES,Maintenance - Grounds,Cultural and Related Services
Swale Borough Council,29UM,17/03/2020,1175386,533.00,MAYLOW CONSTRUCTION LTD,                         ,LEISURE & OPEN SPACES,Maintenance - Grounds,Cultural and Related Services
Swale Borough Council,29UM,17/03/2020,1175386,1035.00,MAYLOW CONSTRUCTION LTD,                         ,LEISURE & OPEN SPACES,Maintenance - Grounds,Cultural and Related Services
Swale Borough Council,29UM,17/03/2020,1175334,500.00,MEDWAY PUBLIC SERVICES LTD,10041989                 ,COMMUNITY SAFETY,Fees and Services,Planning and Development Services
Swale Borough Council,29UM,17/03/2020,1175357,332.15,METRIC GROUP LTD,2560839                  ,CAR PARKS,Equipment Maintenance,Highway and Transport Services
Swale Borough Council,29UM,17/03/2020,1175197,264.00,MIDLANDS SIGNS LEICESTER LTD,1778323                  ,SERVICE DELIVERY,Private Contractors - CIS,Highway and Transport Services
Swale Borough Council,29UM,17/03/2020,1175303,1000.00,MINSTER C P SCHOOL,                         ,DEMOCRATIC & ELECTORAL SERVICES,Hire Of Premises,Ledger/Suspense Codes
Swale Borough Council,29UM,17/03/2020,1174998,507.69,NPOWER,3432100                  ,LEISURE & OPEN SPACES,Electricity,Cultural and Related Services
Swale Borough Council,29UM,17/03/2020,1175127,284.82,NPOWER,                         ,LEISURE & OPEN SPACES,Electricity,Cultural and Related Services
Swale Borough Council,29UM,17/03/2020,1174800,15.00,O2 (UK) LTD,1743099                  ,REVENUE SERVICES,Cellphone,Central Services to the Public
Swale Borough Council,29UM,17/03/2020,1174800,7.50,O2 (UK) LTD,1743099                  ,PLANNING SERVICES,Cellphone,Planning and Development Services
Swale Borough Council,29UM,17/03/2020,1174800,7.50,O2 (UK) LTD,1743099                  ,ECONOMIC DEVELOPMENT,Cellphone,Planning and Development Services
Swale Borough Council,29UM,17/03/2020,1174800,17.50,O2 (UK) LTD,1743099                  ,EMERGENCY PLANNING,Cellphone,Central Services to the Public
Swale Borough Council,29UM,17/03/2020,1174800,16.50,O2 (UK) LTD,1743099                  ,SERVICE DELIVERY,Cellphone,Cultural and Related Services
Swale Borough Council,29UM,17/03/2020,1174800,58.00,O2 (UK) LTD,1743099                  ,HOUSING SERVICES,Cellphone,Housing
Swale Borough Council,29UM,17/03/2020,1174800,116.05,O2 (UK) LTD,1743099                  ,HOUSING SERVICES,Cellphone,Housing
Swale Borough Council,29UM,17/03/2020,1174800,7.50,O2 (UK) LTD,1743099                  ,REVENUE SERVICES,Cellphone,Housing
Swale Borough Council,29UM,17/03/2020,1174800,71.53,O2 (UK) LTD,1743099                  ,PROPERTY SERVICES,Cellphone,Internal Trading Cost Centres
Swale Borough Council,29UM,17/03/2020,1174800,15.00,O2 (UK) LTD,1743099                  ,TOURISM & SPORTS DEVELOPMENT,Cellphone,Internal Trading Cost Centres
Swale Borough Council,29UM,17/03/2020,1174800,7.50,O2 (UK) LTD,1743099                  ,ECONOMY & COMMUNITIES,Cellphone,Internal Trading Cost Centres
Swale Borough Council,29UM,17/03/2020,1174800,22.50,O2 (UK) LTD,1743099                  ,LICENCING,Cellphone,Internal Trading Cost Centres
Swale Borough Council,29UM,17/03/2020,1174800,57.00,O2 (UK) LTD,1743099                  ,CONTRACTS,Cellphone,Internal Trading Cost Centres
Swale Borough Council,29UM,17/03/2020,1174800,7.50,O2 (UK) LTD,1743099                  ,SERVICE DELIVERY,Cellphone,Internal Trading Cost Centres
Swale Borough Council,29UM,17/03/2020,1174800,20.50,O2 (UK) LTD,1743099                  ,ECONOMIC DEVELOPMENT,Cellphone,Internal Trading Cost Centres
Swale Borough Council,29UM,17/03/2020,1174800,7.50,O2 (UK) LTD,1743099                  ,CONTRACTS,Cellphone,Internal Trading Cost Centres
Swale Borough Council,29UM,17/03/2020,1174800,67.87,O2 (UK) LTD,1743099                  ,ENVIRONMENTAL RESPONSE TEAM,Cellphone,Internal Trading Cost Centres
Swale Borough Council,29UM,17/03/2020,1174800,7.00,O2 (UK) LTD,1743099                  ,MKS ENVIRONMENTAL SERVICES,Cellphone,Internal Trading Cost Centres
Swale Borough Council,29UM,17/03/2020,1174800,14.50,O2 (UK) LTD,1743099                  ,CHIEF EXECUTIVE,Cellphone,Internal Trading Cost Centres
Swale Borough Council,29UM,17/03/2020,1174800,55.00,O2 (UK) LTD,1743099                  ,LEISURE & OPEN SPACES,Cellphone,Internal Trading Cost Centres
Swale Borough Council,29UM,17/03/2020,1174800,7.70,O2 (UK) LTD,1743099                  ,PLANNING SERVICES,Cellphone,Internal Trading Cost Centres
Swale Borough Council,29UM,17/03/2020,1174800,7.50,O2 (UK) LTD,1743099                  ,DIRECTOR OF REGENERATION,Cellphone,Internal Trading Cost Centres
Swale Borough Council,29UM,17/03/2020,1174800,7.50,O2 (UK) LTD,1743099                  ,POLICY,Cellphone,Internal Trading Cost Centres
Swale Borough Council,29UM,17/03/2020,1174800,7.50,O2 (UK) LTD,1743099                  ,COMMISSIONING & CUSTOMER CONTACT,Cellphone,Internal Trading Cost Centres
Swale Borough Council,29UM,17/03/2020,1174800,15.00,O2 (UK) LTD,1743099                  ,COMMISSIONING & CUSTOMER CONTACT,Cellphone,Internal Trading Cost Centres
Swale Borough Council,29UM,17/03/2020,1174800,17.50,O2 (UK) LTD,1743099                  ,COMMUNICATIONS,Cellphone,Internal Trading Cost Centres
Swale Borough Council,29UM,17/03/2020,1174800,33.20,O2 (UK) LTD,1743099                  ,ENVIRONMENTAL RESPONSE TEAM,Cellphone,Internal Trading Cost Centres
Swale Borough Council,29UM,17/03/2020,1174800,30.00,O2 (UK) LTD,1743099                  ,MKS LEGAL SERVICES,Cellphone,Internal Trading Cost Centres
Swale Borough Council,29UM,17/03/2020,1174800,7.50,O2 (UK) LTD,1743099                  ,INFORMATION GOVERNANCE,Cellphone,Internal Trading Cost Centres
Swale Borough Council,29UM,17/03/2020,1174800,37.00,O2 (UK) LTD,1743099                  ,MULTISTOREY CAR PARK,Cellphone,Highway and Transport Services
Swale Borough Council,29UM,17/03/2020,1174800,7.50,O2 (UK) LTD,1743099                  ,LEISURE & OPEN SPACES,Cellphone,Cultural and Related Services
Swale Borough Council,29UM,17/03/2020,1174800,3.00,O2 (UK) LTD,1743099                  ,PLANNING SERVICES,Cellphone,Planning and Development Services
Swale Borough Council,29UM,17/03/2020,1174800,45.00,O2 (UK) LTD,1743099                  ,HOUSING SERVICES,Cellphone,Housing
Swale Borough Council,29UM,17/03/2020,1174800,17.98,O2 (UK) LTD,1743099                  ,ENVIRONMENTAL RESPONSE TEAM,Cellphone,Environmental and Regulatory Services
Swale Borough Council,29UM,17/03/2020,1174800,17.50,O2 (UK) LTD,1743099                  ,TOURISM & SPORTS DEVELOPMENT,Cellphone,Cultural and Related Services
Swale Borough Council,29UM,17/03/2020,1174800,50.00,O2 (UK) LTD,1743099                  ,HOUSING SERVICES,Cellphone,Housing
Swale Borough Council,29UM,17/03/2020,1175143,699.00,O2 (UK) LTD,1743099                  ,CONTRACTS,Equipment Purchase,Internal Trading Cost Centres
Swale Borough Council,29UM,17/03/2020,1175020,1800.00,PATHFINDER DEVELOPMENT CONSULTANTS LTD,08666821                 ,PLANNING SERVICES,Fees and Services,Planning and Development Services
Swale Borough Council,29UM,17/03/2020,1175021,1000.00,PATHFINDER DEVELOPMENT CONSULTANTS LTD,08666821                 ,PLANNING SERVICES,Fees and Services,Planning and Development Services
Swale Borough Council,29UM,17/03/2020,1175009,855.00,RAINBOW WATER SERVICES LTD,2735065                  ,CONTRACTS,Service Contracts,Environmental and Regulatory Services
Swale Borough Council,29UM,17/03/2020,1175313,945.00,RODMERSHAM CRICKET CLUB,                         ,TOURISM & SPORTS DEVELOPMENT,Grants & Subscriptions,Cultural and Related Services
Swale Borough Council,29UM,17/03/2020,1175007,375.00,RURAL PLANNING LTD,4426249                  ,PLANNING SERVICES,Fees and Services,Planning and Development Services
Swale Borough Council,29UM,17/03/2020,1175183,380.00,S R INVESTMENTS,                         ,HOUSING SERVICES,B & B - Homelessness Landlord Payments,Housing
Swale Borough Council,29UM,17/03/2020,1175308,350.00,SHEERNESS COUNTY YOUTH CLUB,                         ,DEMOCRATIC & ELECTORAL SERVICES,Hire Of Premises,Ledger/Suspense Codes
Swale Borough Council,29UM,17/03/2020,1175201,439.28,SOUTHERN COMMUNICATIONS LTD,1328040                  ,MKS ICT,Telephone,Corporate & Democratic Core
Swale Borough Council,29UM,17/03/2020,1175359,466.04,SOUTHERN ELECTRIC,                         ,LEISURE & OPEN SPACES,Electricity,Cultural and Related Services
Swale Borough Council,29UM,17/03/2020,1175251,1000.00,STOP THE TRAFFIK,                         ,COMMUNITY SAFETY,Fees and Services,Planning and Development Services
Swale Borough Council,29UM,17/03/2020,1175251,100.50,STOP THE TRAFFIK,                         ,COMMUNITY SAFETY,Fees and Services,Planning and Development Services
Swale Borough Council,29UM,17/03/2020,1175296,450.00,SWALE CAP DEBT CENTRE,                         ,ECONOMY & COMMUNITIES,Grants & Subscriptions,Central Services to the Public
Swale Borough Council,29UM,17/03/2020,1175314,11218.00,SWALE COMMUNITY LEISURE LIMITED,31132R                   ,LEISURE & OPEN SPACES,Procurement Contracts Only,Cultural and Related Services
Swale Borough Council,29UM,17/03/2020,1175252,987.20,THE 2 MINUTE FOUNDATION,CE019062                 ,COMMUNICATIONS,Signage,Internal Trading Cost Centres
Swale Borough Council,29UM,17/03/2020,1175131,4462.00,THE ENVIRONMENT PARTNERSHIP,07745159                 ,PLANNING SERVICES,Fees and Services,Planning and Development Services
Swale Borough Council,29UM,17/03/2020,1175230,14325.28,THE ENVIRONMENT PARTNERSHIP,07745159                 ,PLANNING SERVICES,Performance Fund Expenditure,Ledger/Suspense Codes
Swale Borough Council,29UM,17/03/2020,1175114,1012.00,THE OYSTER PARTNERSHIP,05020374                 ,PLANNING SERVICES,Agency/Contract Staff,Planning and Development Services
Swale Borough Council,29UM,17/03/2020,1175115,1739.00,THE OYSTER PARTNERSHIP,05020374                 ,PLANNING SERVICES,Agency/Contract Staff,Internal Trading Cost Centres
Swale Borough Council,29UM,17/03/2020,1175283,1739.00,THE OYSTER PARTNERSHIP,05020374                 ,PLANNING SERVICES,Agency/Contract Staff,Internal Trading Cost Centres
Swale Borough Council,29UM,17/03/2020,1175284,1716.00,THE OYSTER PARTNERSHIP,05020374                 ,PLANNING SERVICES,Agency/Contract Staff,Planning and Development Services
Swale Borough Council,29UM,17/03/2020,1175336,298.00,THREE TOWNS OFFICE EQUIPMENT LTD,                         ,CAR PARKS,Furniture,Internal Trading Cost Centres
Swale Borough Council,29UM,17/03/2020,1175352,298.00,THREE TOWNS OFFICE EQUIPMENT LTD,                         ,MKS ENVIRONMENTAL SERVICES,Furniture,Internal Trading Cost Centres
Swale Borough Council,29UM,17/03/2020,1175254,2212.92,TOTAL SECURITY SERVICES LTD (TSS),02426982                 ,PROPERTY SERVICES,Fees and Services,Corporate & Democratic Core
Swale Borough Council,29UM,17/03/2020,1175216,1281.00,TRAFALGAR TAVERN LTD,07999329                 ,HOUSING SERVICES,B & B - Homelessness Landlord Payments,Housing
Swale Borough Council,29UM,17/03/2020,1175107,1260.00,VIVID RESOURCING LIMITED,06459262                 ,PLANNING SERVICES,Agency/Contract Staff,Internal Trading Cost Centres
Swale Borough Council,29UM,17/03/2020,1175300,300.00,WARDEN VILLAGE HALL,                         ,DEMOCRATIC & ELECTORAL SERVICES,Hire Of Premises,Ledger/Suspense Codes
Swale Borough Council,29UM,17/03/2020,1174734,290.96,WHISTL UK LIMITED,04417047                 ,REVENUE SERVICES,Postage,Central Services to the Public
Swale Borough Council,29UM,17/03/2020,1174734,145.48,WHISTL UK LIMITED,04417047                 ,REVENUE SERVICES,Postage,Housing
Swale Borough Council,29UM,17/03/2020,1174734,14.32,WHISTL UK LIMITED,04417047                 ,LEISURE & OPEN SPACES,Postage,Internal Trading Cost Centres
Swale Borough Council,29UM,17/03/2020,1174734,23.12,WHISTL UK LIMITED,04417047                 ,CAR PARKS,Postage,Internal Trading Cost Centres
Swale Borough Council,29UM,17/03/2020,1174734,17.25,WHISTL UK LIMITED,04417047                 ,PROPERTY SERVICES,Postage,Holding Codes
Swale Borough Council,29UM,17/03/2020,1174734,104.04,WHISTL UK LIMITED,04417047                 ,DEMOCRATIC & ELECTORAL SERVICES,Postage,Central Services to the Public
Swale Borough Council,29UM,17/03/2020,1175288,7357.00,WYNNE-WILLIAMS ASSOCIATES LTD,5148770                  ,LEISURE & OPEN SPACES,Capitalised Fees And Charges,Not used in this Structure
Swale Borough Council,29UM,17/03/2020,1175289,700.00,WYNNE-WILLIAMS ASSOCIATES LTD,5148770                  ,LEISURE & OPEN SPACES,Capitalised Fees And Charges,Not used in this Structure
Swale Borough Council,29UM,17/03/2020,1175290,11082.00,WYNNE-WILLIAMS ASSOCIATES LTD,5148770                  ,LEISURE & OPEN SPACES,Capitalised Fees And Charges,Not used in this Structure
Swale Borough Council,29UM,17/03/2020,1175258,4360.00,WYVERN HERITAGE AND LANDSCAPE CONSULTANCY,                         ,PLANNING SERVICES,Fees and Services,Planning and Development Services
Swale Borough Council,29UM,17/03/2020,1175262,2100.00,WYVERN HERITAGE AND LANDSCAPE CONSULTANCY,                         ,PLANNING SERVICES,Fees and Services,Planning and Development Services
Swale Borough Council,29UM,26/03/2020,1175604,22765.95,ACORN MAINTENANCE SERVICES,3546898                  ,HOUSING SERVICES,Housing Renovation Grants,Not used in this Structure
Swale Borough Council,29UM,26/03/2020,1175235,500.00,AMRP LTD,5667861                  ,HOUSING SERVICES,Homelessness  Prevention Services,Housing
Swale Borough Council,29UM,26/03/2020,1175567,19257.76,APCOA PARKING (UK) LTD,2572947                  ,CAR PARKS,Private Contractors,Highway and Transport Services
Swale Borough Council,29UM,26/03/2020,1175567,12838.50,APCOA PARKING (UK) LTD,2572947                  ,CAR PARKS,Private Contractors,Highway and Transport Services
Swale Borough Council,29UM,26/03/2020,1175353,660.95,BISHOP SPORTS AND LEISURE LTD,1104320                  ,TOURISM & SPORTS DEVELOPMENT,Equipment Purchase,Cultural and Related Services
Swale Borough Council,29UM,26/03/2020,1175505,410.95,BISHOP SPORTS AND LEISURE LTD,1104320                  ,TOURISM & SPORTS DEVELOPMENT,Equipment Purchase,Cultural and Related Services
Swale Borough Council,29UM,26/03/2020,1175380,478.80,BLENWOOD LTD,4383277                  ,LEISURE & OPEN SPACES,Maintenance - Grounds,Cultural and Related Services
Swale Borough Council,29UM,26/03/2020,1175382,800.00,BLENWOOD LTD,4383277                  ,LEISURE & OPEN SPACES,Maintenance - Grounds,Cultural and Related Services
Swale Borough Council,29UM,26/03/2020,1175549,3303.11,BLENWOOD LTD,4383277                  ,LEISURE & OPEN SPACES,Grounds Maint Suspense,Cultural and Related Services
Swale Borough Council,29UM,26/03/2020,1175550,105326.14,BLENWOOD LTD,4383277                  ,LEISURE & OPEN SPACES,Grounds Maint Suspense,Cultural and Related Services
Swale Borough Council,29UM,26/03/2020,1175553,871.11,BLENWOOD LTD,4383277                  ,LEISURE & OPEN SPACES,Maintenance - Grounds,Cultural and Related Services
Swale Borough Council,29UM,26/03/2020,1175554,225.00,BLENWOOD LTD,4383277                  ,LEISURE & OPEN SPACES,Maintenance - Grounds Contract,Cultural and Related Services
Swale Borough Council,29UM,26/03/2020,1175554,360.00,BLENWOOD LTD,4383277                  ,LEISURE & OPEN SPACES,Maintenance - Grounds,Cultural and Related Services
Swale Borough Council,29UM,26/03/2020,1175556,6147.84,BLENWOOD LTD,4383277                  ,LEISURE & OPEN SPACES,Maintenance - Grounds Contract,Cultural and Related Services
Swale Borough Council,29UM,26/03/2020,1175557,379.17,BLENWOOD LTD,4383277                  ,LEISURE & OPEN SPACES,Maintenance - Grounds,Environmental and Regulatory Services
Swale Borough Council,29UM,26/03/2020,1175558,334.89,BLENWOOD LTD,4383277                  ,LEISURE & OPEN SPACES,Maintenance - Grounds,Cultural and Related Services
Swale Borough Council,29UM,26/03/2020,1175559,268.89,BLENWOOD LTD,4383277                  ,LEISURE & OPEN SPACES,Nursery Stock,Cultural and Related Services
Swale Borough Council,29UM,26/03/2020,1175562,1338.63,BLENWOOD LTD,4383277                  ,LEISURE & OPEN SPACES,Maintenance - Grounds Contract,Cultural and Related Services
Swale Borough Council,29UM,26/03/2020,1175416,3375.50,BLOOM PROCUREMENT SERVICES LTD,08045123                 ,COMMUNITY SAFETY,Fees and Services,Environmental and Regulatory Services
Swale Borough Council,29UM,26/03/2020,1175472,17831.00,BRE LTD,                         ,HOUSING SERVICES,Consultancy/Specialist Advice,Housing
Swale Borough Council,29UM,26/03/2020,1175527,6819.34,BROADWAY ESTATES,                         ,REVENUE SERVICES,Payments in Year,Ledger/Suspense Codes
Swale Borough Council,29UM,26/03/2020,1174717,791.50,CAMPBELL ASSOCIATES,                         ,ENVIRONMENTAL RESPONSE TEAM,Equipment Maintenance,Internal Trading Cost Centres
Swale Borough Council,29UM,26/03/2020,1175205,1047.49,CAPITA BUSINESS SERVICES LTD,                         ,REVENUE SERVICES,Payments in Year,Ledger/Suspense Codes
Swale Borough Council,29UM,26/03/2020,1175602,6543.38,COLDWELL CONSTRUCTION LTD,4814340                  ,HOUSING SERVICES,Housing Renovation Grants,Not used in this Structure
Swale Borough Council,29UM,26/03/2020,1175607,727.04,COLDWELL CONSTRUCTION LTD,4814340                  ,HOUSING SERVICES,Housing Renovation Grants,Not used in this Structure
Swale Borough Council,29UM,26/03/2020,1175517,2200.00,CONNECT CONSULTANTS LTD,6001923                  ,TOURISM & SPORTS DEVELOPMENT,Fees and Services,Trading Undertaking
Swale Borough Council,29UM,26/03/2020,1175198,367.20,CONTRACT SECURITY SERVICES,2461362                  ,EXCHEQUER,Cash Security,Internal Trading Cost Centres
Swale Borough Council,29UM,26/03/2020,1175198,2841.02,CONTRACT SECURITY SERVICES,2461362                  ,CAR PARKS,Cash Security,Highway and Transport Services
Swale Borough Council,29UM,26/03/2020,1175494,10965.00,COOMBS (CANTERBURY) Ltd.,2040829                  ,LEISURE & OPEN SPACES,Maintenance - Grounds,Cultural and Related Services
Swale Borough Council,29UM,26/03/2020,1175494,2193.00,COOMBS (CANTERBURY) Ltd.,2040829                  ,LEISURE & OPEN SPACES,Maintenance - Grounds,Cultural and Related Services
Swale Borough Council,29UM,26/03/2020,1175495,45049.71,COOMBS (CANTERBURY) Ltd.,2040829                  ,LEISURE & OPEN SPACES,Capital Constuction - CIS Works,Not used in this Structure
Swale Borough Council,29UM,26/03/2020,1175495,225248.52,COOMBS (CANTERBURY) Ltd.,2040829                  ,LEISURE & OPEN SPACES,Capital Constuction - CIS Works,Not used in this Structure
Swale Borough Council,29UM,26/03/2020,1175393,1352.25,CUSHMAN & WAKEFIELD DEBENHAM T L LTD,2757768                  ,PROPERTY SERVICES,Fees and Services,Trading Undertaking
Swale Borough Council,29UM,26/03/2020,1175606,5180.98,DAYTRAD LIMITED,7654373                  ,HOUSING SERVICES,Housing Renovation Grants,Not used in this Structure
Swale Borough Council,29UM,26/03/2020,1175509,1000.00,EASTCHURCH PARISH COUNCIL,                         ,LEISURE & OPEN SPACES,Grants & Contributions-no supply goods or services,Cultural and Related Services
Swale Borough Council,29UM,26/03/2020,1175493,8953.31,EXACOM SYSTEMS LTD,07356515                 ,PLANNING SERVICES,Payments in Year,Ledger/Suspense Codes
Swale Borough Council,29UM,26/03/2020,1175421,25000.00,FAVERSHAM SWIMMING POOL MNGMT COMM LTD,                         ,LEISURE & OPEN SPACES,Payments in Year,Ledger/Suspense Codes
Swale Borough Council,29UM,26/03/2020,1175590,25000.00,FAVERSHAM SWIMMING POOL MNGMT COMM LTD,                         ,LEISURE & OPEN SPACES,Payments in Year,Ledger/Suspense Codes
Swale Borough Council,29UM,26/03/2020,1175360,455.00,GALTEC SOLUTIONS LTD,5209602                  ,COMMUNITY SAFETY,Fees and Services,Environmental and Regulatory Services
Swale Borough Council,29UM,26/03/2020,1175522,2640.00,HIGHER ELEVATION LTD,4078005                  ,HOUSING SERVICES,Staying Put small repairs (contractors),Housing
Swale Borough Council,29UM,26/03/2020,1175603,2674.20,HUBBARD & HOUGHTON CONSTRUCTION LTD,                         ,HOUSING SERVICES,Housing Renovation Grants,Not used in this Structure
Swale Borough Council,29UM,26/03/2020,1175605,6253.00,HUBBARD & HOUGHTON CONSTRUCTION LTD,                         ,HOUSING SERVICES,Housing Renovation Grants,Not used in this Structure
Swale Borough Council,29UM,26/03/2020,1175547,2080.99,ICENI PROJECTS,05359427                 ,PLANNING SERVICES,Fees and Services,Planning and Development Services
Swale Borough Council,29UM,26/03/2020,1175547,123.71,ICENI PROJECTS,05359427                 ,PLANNING SERVICES,Fees and Services,Planning and Development Services
Swale Borough Council,29UM,26/03/2020,1174987,3375.00,IMPROVEMENT & DEV AGENCY FOR LOCAL GOV,3675577                  ,HUMAN RESOURCES,Management Consultants Fees,Corporate & Democratic Core
Swale Borough Council,29UM,26/03/2020,1175318,850.00,ISLE OF SHEPPEY UNI OF THE 3RD AGE (U3A),                         ,ECONOMY & COMMUNITIES,Grants & Subscriptions,Central Services to the Public
Swale Borough Council,29UM,26/03/2020,1175392,1200.00,REDACTED PERSONAL INFORMATION,                         ,HOUSING SERVICES,NL (Nightly Lets) - Homelessness Landlord Payments,Housing
Swale Borough Council,29UM,26/03/2020,1175032,250.00,J N CLEARANCE,                         ,LEISURE & OPEN SPACES,Grounds Contract Variations,Cultural and Related Services
Swale Borough Council,29UM,26/03/2020,1175375,340.00,J N CLEARANCE,                         ,PROPERTY SERVICES,Non-Planned Building Maintenance,Corporate & Democratic Core
Swale Borough Council,29UM,26/03/2020,1175487,325.00,J N CLEARANCE,                         ,CONTRACTS,"Clearance Of Waste,Fly Tipping",Environmental and Regulatory Services
Swale Borough Council,29UM,26/03/2020,1175488,125.00,J N CLEARANCE,                         ,CONTRACTS,Equipment Maintenance,Environmental and Regulatory Services
Swale Borough Council,29UM,26/03/2020,1175488,250.00,J N CLEARANCE,                         ,CONTRACTS,Equipment Maintenance,Environmental and Regulatory Services
Swale Borough Council,29UM,26/03/2020,1175488,200.00,J N CLEARANCE,                         ,CONTRACTS,Equipment Maintenance,Environmental and Regulatory Services
Swale Borough Council,29UM,26/03/2020,1175488,700.00,J N CLEARANCE,                         ,CONTRACTS,"Clearance Of Waste,Fly Tipping",Environmental and Regulatory Services
Swale Borough Council,29UM,26/03/2020,1175488,375.00,J N CLEARANCE,                         ,CONTRACTS,Private Contractors,Environmental and Regulatory Services
Swale Borough Council,29UM,26/03/2020,1175488,450.00,J N CLEARANCE,                         ,CONTRACTS,"Clearance Of Waste,Fly Tipping",Environmental and Regulatory Services
Swale Borough Council,29UM,26/03/2020,1175489,250.00,J N CLEARANCE,                         ,LEISURE & OPEN SPACES,Grounds Contract Variations,Cultural and Related Services
Swale Borough Council,29UM,26/03/2020,1175512,1209.00,JEREMY BENN ASSOCIATES LTD,3246693                  ,PLANNING SERVICES,Fees and Services,Planning and Development Services
Swale Borough Council,29UM,26/03/2020,1175320,250.00,KAB SITTINGBOURNE BLIND FELLOWSHIP,                         ,ECONOMY & COMMUNITIES,Grants & Subscriptions,Central Services to the Public
Swale Borough Council,29UM,26/03/2020,1175346,622.00,KCC SWALE YOUTH HUB,                         ,ECONOMY & COMMUNITIES,Grants & Subscriptions,Central Services to the Public
Swale Borough Council,29UM,26/03/2020,1175539,7802.00,KENT COUNTY COUNCIL,                         ,PLANNING SERVICES,Fees and Services,Internal Trading Cost Centres
Swale Borough Council,29UM,26/03/2020,1175592,59195.49,KENT COUNTY COUNCIL,                         ,PLANNING SERVICES,Payments in Year,Ledger/Suspense Codes
Swale Borough Council,29UM,26/03/2020,1175370,3923.60,KENT COUNTY COUNCIL (KCS),                         ,PROPERTY SERVICES,Electricity,Corporate & Democratic Core
Swale Borough Council,29UM,26/03/2020,1175371,892.52,KENT COUNTY COUNCIL (KCS),                         ,MULTISTOREY CAR PARK,Electricity,Highway and Transport Services
Swale Borough Council,29UM,26/03/2020,1175474,594.30,KENT COUNTY COUNCIL (KCS),                         ,CAR PARKS,Electricity,Highway and Transport Services
Swale Borough Council,29UM,26/03/2020,1175328,300.00,LEMAR LIMITED,04350292                 ,MULTISTOREY CAR PARK,Private Contractors - CIS,Highway and Transport Services
Swale Borough Council,29UM,26/03/2020,1175328,275.00,LEMAR LIMITED,04350292                 ,MULTISTOREY CAR PARK,Private Contractors - CIS,Highway and Transport Services
Swale Borough Council,29UM,26/03/2020,1175585,300.00,LEMAR LIMITED,04350292                 ,CAR PARKS,Maintenance - Grounds,Highway and Transport Services
Swale Borough Council,29UM,26/03/2020,1175585,75.00,LEMAR LIMITED,04350292                 ,CAR PARKS,Maintenance - Grounds,Highway and Transport Services
Swale Borough Council,29UM,26/03/2020,1175532,750.00,LEYSDOWN PARISH COUNCIL,                         ,ENVIRONMENTAL RESPONSE TEAM,Grants & Subscriptions,Planning and Development Services
Swale Borough Council,29UM,26/03/2020,1175005,8464.00,LINK PROPERTY GROUP,                         ,HOUSING SERVICES,NL (Nightly Lets) - Homelessness Landlord Payments,Housing
Swale Borough Council,29UM,26/03/2020,1175490,86282.06,MAIDSTONE BOROUGH COUNCIL,                         ,CONTRACTS,Private Contractors,Environmental and Regulatory Services
Swale Borough Council,29UM,26/03/2020,1175490,216865.55,MAIDSTONE BOROUGH COUNCIL,                         ,CONTRACTS,Private Contractors,Environmental and Regulatory Services
Swale Borough Council,29UM,26/03/2020,1175624,963261.00,MAIDSTONE BOROUGH COUNCIL - DT,                         ,FINANCIAL SERVICES,Tariff to Gvt,Taxation and Non-Specific Grant Income
Swale Borough Council,29UM,26/03/2020,1175502,4181.72,MATRIX SCM LTD,2227962                  ,HUMAN RESOURCES,Agency/Contract Staff,Internal Trading Cost Centres
Swale Borough Council,29UM,26/03/2020,1175397,380.00,MATTS MONITORS LTD,8501849                  ,MKS ENVIRONMENTAL SERVICES,Equipment,Not used in this Structure
Swale Borough Council,29UM,26/03/2020,1175398,700.00,MATTS MONITORS LTD,8501849                  ,MKS ENVIRONMENTAL SERVICES,Equipment,Not used in this Structure
Swale Borough Council,29UM,26/03/2020,1175419,2661.75,MAUGER'S LEGAL SERVICES LTD,9133724                  ,MKS LEGAL SERVICES,Legal Fees,Internal Trading Cost Centres
Swale Borough Council,29UM,26/03/2020,1175388,1020.00,ME TRAINING SERVICES,                         ,LEISURE & OPEN SPACES,Fees and Services,Cultural and Related Services
Swale Borough Council,29UM,26/03/2020,1175486,858.90,MIDLANDS SIGNS LEICESTER LTD,1778323                  ,SERVICE DELIVERY,Private Contractors - CIS,Highway and Transport Services
Swale Borough Council,29UM,26/03/2020,1175536,600.00,MOAT HOMES LTD,                         ,HOUSING SERVICES,Homelessness  Prevention Services,Housing
Swale Borough Council,29UM,26/03/2020,1175498,2500.00,REDACTED PERSONAL INFORMATION,                         ,ENVIRONMENTAL RESPONSE TEAM,Legal Fees,Internal Trading Cost Centres
Swale Borough Council,29UM,26/03/2020,1175498,500.00,REDACTED PERSONAL INFORMATION,                         ,ENVIRONMENTAL RESPONSE TEAM,Legal Fees,Internal Trading Cost Centres
Swale Borough Council,29UM,26/03/2020,1175170,-2580.85,NATIONWIDE CRASH REPAIR CENTRES LTD,650582                   ,HOUSING SERVICES,Insurance Settlement Lease Cars,Housing
Swale Borough Council,29UM,26/03/2020,1175170,2580.85,NATIONWIDE CRASH REPAIR CENTRES LTD,650582                   ,HOUSING SERVICES,Insurance Repair,Housing
Swale Borough Council,29UM,26/03/2020,1175170,250.00,NATIONWIDE CRASH REPAIR CENTRES LTD,650582                   ,HOUSING SERVICES,Insurance Excess Rental Car,Housing
Swale Borough Council,29UM,26/03/2020,1175455,-250.00,NATIONWIDE CRASH REPAIR CENTRES LTD,650582                   ,HOUSING SERVICES,Insurance Excess Rental Car,Housing
Swale Borough Council,29UM,26/03/2020,1175455,-1580.85,NATIONWIDE CRASH REPAIR CENTRES LTD,650582                   ,HOUSING SERVICES,Insurance Repair,Housing
Swale Borough Council,29UM,26/03/2020,1175455,1580.85,NATIONWIDE CRASH REPAIR CENTRES LTD,650582                   ,HOUSING SERVICES,Insurance Settlement Lease Cars,Housing
Swale Borough Council,29UM,26/03/2020,1175565,264.25,NORTHSHORE DESIGNS LIMITED,                         ,LEISURE & OPEN SPACES,Protective Clothing,Internal Trading Cost Centres
Swale Borough Council,29UM,26/03/2020,1175407,320.33,NPOWER,                         ,MKS ENVIRONMENTAL SERVICES,Electricity,Environmental and Regulatory Services
Swale Borough Council,29UM,26/03/2020,1175411,320.32,NPOWER,                         ,CONTRACTS,Electricity,Environmental and Regulatory Services
Swale Borough Council,29UM,26/03/2020,1175414,506.24,NPOWER,                         ,PROPERTY SERVICES,Electricity,Trading Undertaking
Swale Borough Council,29UM,26/03/2020,1175436,-527.12,NPOWER,                         ,CONTRACTS,Electricity,Environmental and Regulatory Services
Swale Borough Council,29UM,26/03/2020,1175440,291.20,NPOWER,                         ,CONTRACTS,Electricity,Environmental and Regulatory Services
Swale Borough Council,29UM,26/03/2020,1175441,297.72,NPOWER,                         ,LEISURE & OPEN SPACES,Electricity,Environmental and Regulatory Services
Swale Borough Council,29UM,26/03/2020,1175442,257.67,NPOWER,                         ,CONTRACTS,Electricity,Environmental and Regulatory Services
Swale Borough Council,29UM,26/03/2020,1175469,624.47,NPOWER,                         ,LEISURE & OPEN SPACES,Electricity,Cultural and Related Services
Swale Borough Council,29UM,26/03/2020,1175470,496.35,NPOWER,                         ,LEISURE & OPEN SPACES,Electricity,Cultural and Related Services
Swale Borough Council,29UM,26/03/2020,1175475,250.80,NPOWER,                         ,CONTRACTS,Electricity,Environmental and Regulatory Services
Swale Borough Council,29UM,26/03/2020,1175158,15328.00,OPTIVO,09100835                 ,FINANCIAL SERVICES,Awaiting Allocation,Ledger/Suspense Codes
Swale Borough Council,29UM,26/03/2020,1175165,15328.00,OPTIVO,09100835                 ,FINANCIAL SERVICES,Awaiting Allocation,Ledger/Suspense Codes
Swale Borough Council,29UM,26/03/2020,1175535,662.96,OPTIVO,                         ,HOUSING SERVICES,Homelessness  Prevention Services,Housing
Swale Borough Council,29UM,26/03/2020,1175096,4835.00,PARAMOUNT INDEPENDENT PROPERTY SERVICES,                         ,HOUSING SERVICES,NL (Nightly Lets) - Homelessness Landlord Payments,Housing
Swale Borough Council,29UM,26/03/2020,1175231,5650.00,PARAMOUNT INDEPENDENT PROPERTY SERVICES,                         ,HOUSING SERVICES,NL (Nightly Lets) - Homelessness Landlord Payments,Housing
Swale Borough Council,29UM,26/03/2020,1175232,60651.00,PARAMOUNT INDEPENDENT PROPERTY SERVICES,                         ,HOUSING SERVICES,NL (Nightly Lets) - Homelessness Landlord Payments,Housing
Swale Borough Council,29UM,26/03/2020,1175050,3366.36,PARK AVENUE RECRUITMENT LIMITED,10370450                 ,HOUSING SERVICES,Agency/Contract Staff,Housing
Swale Borough Council,29UM,26/03/2020,1175054,1093.60,PARK AVENUE RECRUITMENT LIMITED,10370450                 ,HOUSING SERVICES,Agency/Contract Staff,Housing
Swale Borough Council,29UM,26/03/2020,1175055,1073.00,PARK AVENUE RECRUITMENT LIMITED,10370450                 ,HOUSING SERVICES,Agency/Contract Staff,Housing
Swale Borough Council,29UM,26/03/2020,1175209,1073.00,PARK AVENUE RECRUITMENT LIMITED,10370450                 ,HOUSING SERVICES,Agency/Contract Staff,Housing
Swale Borough Council,29UM,26/03/2020,1175210,1093.60,PARK AVENUE RECRUITMENT LIMITED,10370450                 ,HOUSING SERVICES,Agency/Contract Staff,Housing
Swale Borough Council,29UM,26/03/2020,1175376,1080.00,PARK AVENUE RECRUITMENT LIMITED,10370450                 ,HOUSING SERVICES,Agency/Contract Staff,Housing
Swale Borough Council,29UM,26/03/2020,1175377,1073.00,PARK AVENUE RECRUITMENT LIMITED,10370450                 ,HOUSING SERVICES,Agency/Contract Staff,Housing
Swale Borough Council,29UM,26/03/2020,1175545,1073.00,PARK AVENUE RECRUITMENT LIMITED,10370450                 ,HOUSING SERVICES,Agency/Contract Staff,Housing
Swale Borough Council,29UM,26/03/2020,1175546,1064.80,PARK AVENUE RECRUITMENT LIMITED,10370450                 ,HOUSING SERVICES,Agency/Contract Staff,Housing
Swale Borough Council,29UM,26/03/2020,1175253,512.04,PINSENT MASONS LLP,OC333653                 ,ECONOMIC DEVELOPMENT,Fees and Services,Planning and Development Services
Swale Borough Council,29UM,26/03/2020,1175253,3383.50,PINSENT MASONS LLP,OC333653                 ,FINANCIAL SERVICES,STC - Capitalised Fees And Charges,Not used in this Structure
Swale Borough Council,29UM,26/03/2020,1175253,191.00,PINSENT MASONS LLP,OC333653                 ,FINANCIAL SERVICES,STC - Capitalised Fees And Charges,Not used in this Structure
Swale Borough Council,29UM,26/03/2020,1175253,80.00,PINSENT MASONS LLP,OC333653                 ,FINANCIAL SERVICES,STC - Capitalised Fees And Charges,Not used in this Structure
Swale Borough Council,29UM,26/03/2020,1174948,241.46,PURDY CONTRACTS LTD,01830283                 ,COMMUNITY SAFETY,Non-Planned Building Maintenance,Cultural and Related Services
Swale Borough Council,29UM,26/03/2020,1174948,186.00,PURDY CONTRACTS LTD,01830283                 ,PROPERTY SERVICES,Non-Planned Building Maintenance,Corporate & Democratic Core
Swale Borough Council,29UM,26/03/2020,1174949,181.20,PURDY CONTRACTS LTD,01830283                 ,COMMUNITY SAFETY,Service Contracts,Cultural and Related Services
Swale Borough Council,29UM,26/03/2020,1174949,217.00,PURDY CONTRACTS LTD,01830283                 ,HOUSING SERVICES,General Maintenance,Housing
Swale Borough Council,29UM,26/03/2020,1174949,293.00,PURDY CONTRACTS LTD,01830283                 ,HOUSING SERVICES,General Maintenance,Housing
Swale Borough Council,29UM,26/03/2020,1174949,93.00,PURDY CONTRACTS LTD,01830283                 ,HOUSING SERVICES,General Maintenance,Housing
Swale Borough Council,29UM,26/03/2020,1174949,124.00,PURDY CONTRACTS LTD,01830283                 ,HOUSING SERVICES,General Maintenance,Housing
Swale Borough Council,29UM,26/03/2020,1174949,419.32,PURDY CONTRACTS LTD,01830283                 ,HOUSING SERVICES,General Maintenance,Housing
Swale Borough Council,29UM,26/03/2020,1174949,310.00,PURDY CONTRACTS LTD,01830283                 ,PROPERTY SERVICES,Non-Planned Building Maintenance,Corporate & Democratic Core
Swale Borough Council,29UM,26/03/2020,1174949,713.90,PURDY CONTRACTS LTD,01830283                 ,PROPERTY SERVICES,Non-Planned Building Maintenance,Corporate & Democratic Core
Swale Borough Council,29UM,26/03/2020,1174949,186.00,PURDY CONTRACTS LTD,01830283                 ,PROPERTY SERVICES,Non-Planned Building Maintenance,Corporate & Democratic Core
Swale Borough Council,29UM,26/03/2020,1174949,186.00,PURDY CONTRACTS LTD,01830283                 ,PROPERTY SERVICES,Non-Planned Building Maintenance,Corporate & Democratic Core
Swale Borough Council,29UM,26/03/2020,1174949,516.75,PURDY CONTRACTS LTD,01830283                 ,PROPERTY SERVICES,Non-Planned Building Maintenance,Corporate & Democratic Core
Swale Borough Council,29UM,26/03/2020,1174949,819.60,PURDY CONTRACTS LTD,01830283                 ,PROPERTY SERVICES,Non-Planned Building Maintenance,Corporate & Democratic Core
Swale Borough Council,29UM,26/03/2020,1174947,1240.14,QTECH APPLICATIONS LTD,                         ,HOUSING SERVICES,Payments in Year,Ledger/Suspense Codes
Swale Borough Council,29UM,26/03/2020,1175514,1550.00,QUAY LETTINGS,                         ,HOUSING SERVICES,Homelessness  Prevention Services,Housing
Swale Borough Council,29UM,26/03/2020,1175515,2000.00,QUEEN ELIZABETHS SCHOOL,                         ,ENVIRONMENTAL RESPONSE TEAM,Grants & Subscriptions,Planning and Development Services
Swale Borough Council,29UM,26/03/2020,1175518,1000.00,QUEEN ELIZABETHS SCHOOL,                         ,TOURISM & SPORTS DEVELOPMENT,Grants & Subscriptions,Cultural and Related Services
Swale Borough Council,29UM,26/03/2020,1174691,600.00,REGENCY ASSET INVESTMENTS LTD,                         ,HOUSING SERVICES,RDS - Landlord claim on Bond Scheme,Housing
Swale Borough Council,29UM,26/03/2020,1174899,1491.00,REGENCY ASSET INVESTMENTS LTD,                         ,HOUSING SERVICES,NL (Nightly Lets) - Homelessness Landlord Payments,Housing
Swale Borough Council,29UM,26/03/2020,1174903,1421.00,REGENCY ASSET INVESTMENTS LTD,                         ,HOUSING SERVICES,NL (Nightly Lets) - Homelessness Landlord Payments,Housing
Swale Borough Council,29UM,26/03/2020,1174904,1883.00,REGENCY ASSET INVESTMENTS LTD,                         ,HOUSING SERVICES,NL (Nightly Lets) - Homelessness Landlord Payments,Housing
Swale Borough Council,29UM,26/03/2020,1174905,1911.00,REGENCY ASSET INVESTMENTS LTD,                         ,HOUSING SERVICES,NL (Nightly Lets) - Homelessness Landlord Payments,Housing
Swale Borough Council,29UM,26/03/2020,1174906,1985.00,REGENCY ASSET INVESTMENTS LTD,                         ,HOUSING SERVICES,NL (Nightly Lets) - Homelessness Landlord Payments,Housing
Swale Borough Council,29UM,26/03/2020,1174907,1995.00,REGENCY ASSET INVESTMENTS LTD,                         ,HOUSING SERVICES,NL (Nightly Lets) - Homelessness Landlord Payments,Housing
Swale Borough Council,29UM,26/03/2020,1174908,1862.00,REGENCY ASSET INVESTMENTS LTD,                         ,HOUSING SERVICES,NL (Nightly Lets) - Homelessness Landlord Payments,Housing
Swale Borough Council,29UM,26/03/2020,1174909,2044.00,REGENCY ASSET INVESTMENTS LTD,                         ,HOUSING SERVICES,NL (Nightly Lets) - Homelessness Landlord Payments,Housing
Swale Borough Council,29UM,26/03/2020,1174910,1885.00,REGENCY ASSET INVESTMENTS LTD,                         ,HOUSING SERVICES,NL (Nightly Lets) - Homelessness Landlord Payments,Housing
Swale Borough Council,29UM,26/03/2020,1174911,2044.00,REGENCY ASSET INVESTMENTS LTD,                         ,HOUSING SERVICES,NL (Nightly Lets) - Homelessness Landlord Payments,Housing
Swale Borough Council,29UM,26/03/2020,1174912,2072.00,REGENCY ASSET INVESTMENTS LTD,                         ,HOUSING SERVICES,NL (Nightly Lets) - Homelessness Landlord Payments,Housing
Swale Borough Council,29UM,26/03/2020,1175293,2324.00,REGENCY ASSET INVESTMENTS LTD,                         ,HOUSING SERVICES,NL (Nightly Lets) - Homelessness Landlord Payments,Housing
Swale Borough Council,29UM,26/03/2020,1175294,2240.00,REGENCY ASSET INVESTMENTS LTD,                         ,HOUSING SERVICES,NL (Nightly Lets) - Homelessness Landlord Payments,Housing
Swale Borough Council,29UM,26/03/2020,1175548,3074.64,RIDLEY RECYCLING LIMITED,5921293                  ,CONTRACTS,Waste and Recycling Promotion / Comm's Projects,Environmental and Regulatory Services
Swale Borough Council,29UM,26/03/2020,1175417,1023.00,RULE AND RULE,                         ,HOUSING SERVICES,Homelessness  Prevention Services,Housing
Swale Borough Council,29UM,26/03/2020,1175503,680.00,S & J SERVICES,                         ,LEISURE & OPEN SPACES,Maintenance - Grounds,Cultural and Related Services
Swale Borough Council,29UM,26/03/2020,1175531,851.22,SHEERNESS TOWN COUNCIL,                         ,ENVIRONMENTAL RESPONSE TEAM,Grants & Subscriptions,Planning and Development Services
Swale Borough Council,29UM,26/03/2020,1175329,500.00,SHEPPEY UNIT SEA CADETS CORPS,                         ,ECONOMY & COMMUNITIES,Grants & Subscriptions,Central Services to the Public
Swale Borough Council,29UM,26/03/2020,1175533,3508.80,SOCOTEC UK LIMITED,02880501                 ,MKS ENVIRONMENTAL SERVICES,Fees - Analysis / Monitoring,Environmental and Regulatory Services
Swale Borough Council,29UM,26/03/2020,1175155,21.11,SODEXO MOTIVATION SOLUTIONS UK LTD,2680629                  ,HUMAN RESOURCES,Fees and Services,Corporate & Democratic Core
Swale Borough Council,29UM,26/03/2020,1175608,7681.64,SOUTH EAST BUILDING CO LTD,1786838                  ,HOUSING SERVICES,Housing Renovation Grants,Not used in this Structure
Swale Borough Council,29UM,26/03/2020,1175626,30000.00,SPIRIT OF SITTINGBOURNE LLP,OC377168                 ,FINANCIAL SERVICES,STC - Capitalised Fees And Charges,Not used in this Structure
Swale Borough Council,29UM,26/03/2020,1175628,7900.00,SPIRIT OF SITTINGBOURNE LLP,OC377168                 ,FINANCIAL SERVICES,STC - Capitalised Fees And Charges,Not used in this Structure
Swale Borough Council,29UM,26/03/2020,1175630,223487.24,SPIRIT OF SITTINGBOURNE LLP,OC377168                 ,FINANCIAL SERVICES,STC - Capitalised Fees And Charges,Not used in this Structure
Swale Borough Council,29UM,26/03/2020,1175521,1600.00,TAMESIDE MBC,                         ,REVENUE SERVICES,Payments in Year,Ledger/Suspense Codes
Swale Borough Council,29UM,26/03/2020,1175582,749.00,TAYLOR BROTHERS LTD,                         ,SERVICE DELIVERY,Private Contractors - CIS,Environmental and Regulatory Services
Swale Borough Council,29UM,26/03/2020,1175344,992.00,THE KIWI PRINT COMPANY,11096239                 ,TOURISM & SPORTS DEVELOPMENT,Equipment Purchase,Cultural and Related Services
Swale Borough Council,29UM,26/03/2020,1175500,1739.00,THE OYSTER PARTNERSHIP,05020374                 ,PLANNING SERVICES,Agency/Contract Staff,Internal Trading Cost Centres
Swale Borough Council,29UM,26/03/2020,1175339,2441.25,THE RIVERSIDE HOUSING GROUP LTD,                         ,HOUSING SERVICES,Fees and Services,Housing
Swale Borough Council,29UM,26/03/2020,1175501,437.00,THOMSON REUTERS,1679046                  ,MKS LEGAL SERVICES,"Books, Journals & e - resources",Internal Trading Cost Centres
Swale Borough Council,29UM,26/03/2020,1175337,298.00,THREE TOWNS OFFICE EQUIPMENT LTD,                         ,PLANNING SERVICES,Furniture,Internal Trading Cost Centres
Swale Borough Council,29UM,26/03/2020,1175406,413.00,THREE TOWNS OFFICE EQUIPMENT LTD,                         ,PROPERTY SERVICES,Furniture,Internal Trading Cost Centres
Swale Borough Council,29UM,26/03/2020,1175511,8000.00,TROWERS & HAMLIN,OC337852                 ,LEISURE & OPEN SPACES,Consultancy/Specialist Advice,Cultural and Related Services
Swale Borough Council,29UM,26/03/2020,1175348,591.00,TRUSTEES OF EASTLING VILLAGE HALL APPEAL,                         ,ECONOMY & COMMUNITIES,Grants & Subscriptions,Central Services to the Public
Swale Borough Council,29UM,26/03/2020,1175552,1023.57,TUNBRIDGE WELLS BOROUGH COUNCIL,                         ,MKS ICT,Telephone,Corporate & Democratic Core
Swale Borough Council,29UM,26/03/2020,1175383,417.78,VANITORIALS LIMITED,3952938                  ,PROPERTY SERVICES,Cleaning Materials,Internal Trading Cost Centres
Swale Borough Council,29UM,26/03/2020,1175347,1554.00,VIVID RESOURCING LIMITED,06459262                 ,PLANNING SERVICES,Agency/Contract Staff,Internal Trading Cost Centres
Swale Borough Council,29UM,26/03/2020,1175364,1554.00,VIVID RESOURCING LIMITED,06459262                 ,PLANNING SERVICES,Agency/Contract Staff,Internal Trading Cost Centres
Swale Borough Council,29UM,26/03/2020,1175144,23.84,VR SANI-CO LTD,3588359                  ,LEISURE & OPEN SPACES,Service Contracts,Cultural and Related Services
Swale Borough Council,29UM,26/03/2020,1175144,12.50,VR SANI-CO LTD,3588359                  ,LEISURE & OPEN SPACES,Service Contracts,Cultural and Related Services
Swale Borough Council,29UM,26/03/2020,1175144,28.17,VR SANI-CO LTD,3588359                  ,LEISURE & OPEN SPACES,Service Contracts,Cultural and Related Services
Swale Borough Council,29UM,26/03/2020,1175144,9.75,VR SANI-CO LTD,3588359                  ,LEISURE & OPEN SPACES,Service Contracts,Cultural and Related Services
Swale Borough Council,29UM,26/03/2020,1175144,16.32,VR SANI-CO LTD,3588359                  ,LEISURE & OPEN SPACES,Service Contracts,Cultural and Related Services
Swale Borough Council,29UM,26/03/2020,1175144,35.76,VR SANI-CO LTD,3588359                  ,PROPERTY SERVICES,Service Contracts,Cultural and Related Services
Swale Borough Council,29UM,26/03/2020,1175144,5.96,VR SANI-CO LTD,3588359                  ,COMMUNITY SAFETY,Service Contracts,Cultural and Related Services
Swale Borough Council,29UM,26/03/2020,1175144,214.56,VR SANI-CO LTD,3588359                  ,PROPERTY SERVICES,Service Contracts,Corporate & Democratic Core
Swale Borough Council,29UM,26/03/2020,1175144,50.00,VR SANI-CO LTD,3588359                  ,PROPERTY SERVICES,Service Contracts,Corporate & Democratic Core
Swale Borough Council,29UM,26/03/2020,1175144,14.08,VR SANI-CO LTD,3588359                  ,PROPERTY SERVICES,Service Contracts,Corporate & Democratic Core
Swale Borough Council,29UM,26/03/2020,1175144,26.00,VR SANI-CO LTD,3588359                  ,PROPERTY SERVICES,Service Contracts,Corporate & Democratic Core
Swale Borough Council,29UM,26/03/2020,1175351,1200.00,WATSON DAY,                         ,DIRECTOR OF REGENERATION,Capitalised Fees And Charges,Not used in this Structure
Swale Borough Council,29UM,26/03/2020,1175002,515.83,WHISTL UK LIMITED,04417047                 ,REVENUE SERVICES,Postage,Central Services to the Public
Swale Borough Council,29UM,26/03/2020,1175002,257.91,WHISTL UK LIMITED,04417047                 ,REVENUE SERVICES,Postage,Housing
Swale Borough Council,29UM,26/03/2020,1175002,1.56,WHISTL UK LIMITED,04417047                 ,LEISURE & OPEN SPACES,Postage,Internal Trading Cost Centres
Swale Borough Council,29UM,26/03/2020,1175002,26.45,WHISTL UK LIMITED,04417047                 ,CAR PARKS,Postage,Internal Trading Cost Centres
Swale Borough Council,29UM,26/03/2020,1175002,47.65,WHISTL UK LIMITED,04417047                 ,PROPERTY SERVICES,Postage,Holding Codes
Swale Borough Council,29UM,26/03/2020,1175002,91.19,WHISTL UK LIMITED,04417047                 ,DEMOCRATIC & ELECTORAL SERVICES,Postage,Central Services to the Public
Swale Borough Council,29UM,26/03/2020,1175180,13786.34,WHISTL UK LIMITED,04417047                 ,REVENUE SERVICES,Postage,Central Services to the Public
Swale Borough Council,29UM,26/03/2020,1175180,6893.18,WHISTL UK LIMITED,04417047                 ,REVENUE SERVICES,Postage,Housing
Swale Borough Council,29UM,26/03/2020,1175180,111.93,WHISTL UK LIMITED,04417047                 ,LEISURE & OPEN SPACES,Postage,Internal Trading Cost Centres
Swale Borough Council,29UM,26/03/2020,1175180,13.03,WHISTL UK LIMITED,04417047                 ,CAR PARKS,Postage,Internal Trading Cost Centres
Swale Borough Council,29UM,26/03/2020,1175180,46.89,WHISTL UK LIMITED,04417047                 ,PROPERTY SERVICES,Postage,Holding Codes
Swale Borough Council,29UM,26/03/2020,1175180,77.83,WHISTL UK LIMITED,04417047                 ,DEMOCRATIC & ELECTORAL SERVICES,Postage,Central Services to the Public
Swale Borough Council,29UM,26/03/2020,1175389,2954.36,WHISTL UK LIMITED,04417047                 ,REVENUE SERVICES,Postage,Central Services to the Public
Swale Borough Council,29UM,26/03/2020,1175389,1477.17,WHISTL UK LIMITED,04417047                 ,REVENUE SERVICES,Postage,Housing
Swale Borough Council,29UM,26/03/2020,1175389,3.31,WHISTL UK LIMITED,04417047                 ,LEISURE & OPEN SPACES,Postage,Internal Trading Cost Centres
Swale Borough Council,29UM,26/03/2020,1175389,20.56,WHISTL UK LIMITED,04417047                 ,CAR PARKS,Postage,Internal Trading Cost Centres
Swale Borough Council,29UM,26/03/2020,1175389,142.88,WHISTL UK LIMITED,04417047                 ,PROPERTY SERVICES,Postage,Holding Codes
Swale Borough Council,29UM,26/03/2020,1175389,125.37,WHISTL UK LIMITED,04417047                 ,DEMOCRATIC & ELECTORAL SERVICES,Postage,Central Services to the Public
Swale Borough Council,29UM,26/03/2020,1175368,811.00,WILLOW TREE HOME SOLUTIONS LTD,                         ,HOUSING SERVICES,Staying Put small repairs (contractors),Housing
Swale Borough Council,29UM,26/03/2020,1175369,284.00,WILLOW TREE HOME SOLUTIONS LTD,                         ,HOUSING SERVICES,Staying Put small repairs (contractors),Housing
Swale Borough Council,29UM,26/03/2020,1175430,790.00,WILLOW TREE HOME SOLUTIONS LTD,                         ,HOUSING SERVICES,Staying Put small repairs (contractors),Housing
Swale Borough Council,29UM,26/03/2020,1175485,530.00,WILLOW TREE HOME SOLUTIONS LTD,                         ,HOUSING SERVICES,Staying Put small repairs (contractors),Housing
Swale Borough Council,29UM,26/03/2020,1175578,765.00,WILLOW TREE HOME SOLUTIONS LTD,                         ,HOUSING SERVICES,Staying Put small repairs (contractors),Housing
Swale Borough Council,29UM,26/03/2020,1175157,909.00,WINDMILL CONSTRUCTION LTD,                         ,FINANCIAL SERVICES,Awaiting Allocation,Ledger/Suspense Codes
Swale Borough Council,29UM,31/03/2020,1175519,612.99,1ST MILTON REGIS SCOUT GROUP,                         ,ECONOMY & COMMUNITIES,Grants & Subscriptions,Central Services to the Public
Swale Borough Council,29UM,31/03/2020,1175669,150.00,AYS,                         ,SERVICE DELIVERY,Private Contractors - CIS,Environmental and Regulatory Services
Swale Borough Council,29UM,31/03/2020,1175669,345.00,AYS,                         ,SERVICE DELIVERY,Private Contractors - CIS,Environmental and Regulatory Services
Swale Borough Council,29UM,31/03/2020,1175670,325.00,AYS,                         ,SERVICE DELIVERY,Private Contractors - CIS,Environmental and Regulatory Services
Swale Borough Council,29UM,31/03/2020,1175670,50.00,AYS,                         ,SERVICE DELIVERY,Private Contractors - CIS,Environmental and Regulatory Services
Swale Borough Council,29UM,31/03/2020,1175666,326.67,BLENWOOD LTD,4383277                  ,LEISURE & OPEN SPACES,Maintenance - Grounds,Cultural and Related Services
Swale Borough Council,29UM,31/03/2020,1175662,2100.00,BLOOM PROCUREMENT SERVICES LTD,08045123                 ,PLANNING SERVICES,Capitalised Fees And Charges,Not used in this Structure
Swale Borough Council,29UM,31/03/2020,1175574,19050.00,CARBON TRUST ADVISORY LTD,6274284                  ,POLICY,Fees and Services,Environmental and Regulatory Services
Swale Borough Council,29UM,31/03/2020,1175627,878.00,CATCH THE SPIRIT LTD,6061643                  ,TOURISM & SPORTS DEVELOPMENT,Equipment Purchase,Cultural and Related Services
Swale Borough Council,29UM,31/03/2020,1175663,10000.00,CHILDREN AND FAMILIES LTD,                         ,ECONOMY & COMMUNITIES,Communities Fund Expenditure,Ledger/Suspense Codes
Swale Borough Council,29UM,31/03/2020,1175664,6000.00,CITIZENS ADVICE BUREAU IN SWALE,5052691                  ,ECONOMY & COMMUNITIES,Communities Fund Expenditure,Ledger/Suspense Codes
Swale Borough Council,29UM,31/03/2020,1175658,1317.87,DHA PLANNING,2683290                  ,FINANCIAL SERVICES,Costs of Disposal,Other Operating Expenditure
Swale Borough Council,29UM,31/03/2020,1175678,23995.00,GOODY DEMOLITION LTD,3063418                  ,LEISURE & OPEN SPACES,Capital Constuction - CIS Works,Not used in this Structure
Swale Borough Council,29UM,31/03/2020,1175685,589.50,HIGHER ELEVATION LTD,4078005                  ,HOUSING SERVICES,Housing Renovation Grants,Not used in this Structure
Swale Borough Council,29UM,31/03/2020,1175633,720.00,HILDERBRANDS REMOVALS & STORAGE LTD,                         ,HOUSING SERVICES,Storage Expenses,Housing
Swale Borough Council,29UM,31/03/2020,1175693,6550.88,HUBBARD & HOUGHTON CONSTRUCTION LTD,                         ,HOUSING SERVICES,Housing Renovation Grants,Not used in this Structure
Swale Borough Council,29UM,31/03/2020,1175677,3750.00,IAN SAYER & Co,                         ,FINANCIAL SERVICES,STC - Capitalised Fees And Charges,Not used in this Structure
Swale Borough Council,29UM,31/03/2020,1175656,2750.00,ICENI PROJECTS,05359427                 ,PLANNING SERVICES,Fees and Services,Planning and Development Services
Swale Borough Council,29UM,31/03/2020,1175689,3165.00,J & D SYSTEMS,                         ,HOUSING SERVICES,Housing Renovation Grants,Not used in this Structure
Swale Borough Council,29UM,31/03/2020,1175690,1223.43,J & D SYSTEMS,                         ,HOUSING SERVICES,Housing Renovation Grants,Not used in this Structure
Swale Borough Council,29UM,31/03/2020,1175691,6193.51,J & D SYSTEMS,                         ,HOUSING SERVICES,Housing Renovation Grants,Not used in this Structure
Swale Borough Council,29UM,31/03/2020,1175692,8843.24,J & D SYSTEMS,                         ,HOUSING SERVICES,Housing Renovation Grants,Not used in this Structure
Swale Borough Council,29UM,31/03/2020,1175649,500.00,J N CLEARANCE,                         ,LEISURE & OPEN SPACES,Maintenance - Grounds,Environmental and Regulatory Services
Swale Borough Council,29UM,31/03/2020,1175540,746521.95,KENT COUNTY COUNCIL,                         ,PLANNING SERVICES,Payments in Year,Ledger/Suspense Codes
Swale Borough Council,29UM,31/03/2020,1175563,1166240.16,KENT COUNTY COUNCIL,                         ,PLANNING SERVICES,Payments in Year,Ledger/Suspense Codes
Swale Borough Council,29UM,31/03/2020,1175564,3261.50,KENT COUNTY COUNCIL,                         ,POLICY,Postage,Internal Trading Cost Centres
Swale Borough Council,29UM,31/03/2020,1175591,525860.76,KENT COUNTY COUNCIL,                         ,PLANNING SERVICES,Payments in Year,Ledger/Suspense Codes
Swale Borough Council,29UM,31/03/2020,1175642,672.22,KENT COUNTY COUNCIL,                         ,PLANNING SERVICES,Payments in Year,Ledger/Suspense Codes
Swale Borough Council,29UM,31/03/2020,1175643,607657.50,KENT COUNTY COUNCIL,                         ,PLANNING SERVICES,Payments in Year,Ledger/Suspense Codes
Swale Borough Council,29UM,31/03/2020,1175636,66.16,KIRKMAN & JOURDAIN LTD,01766240                 ,LEISURE & OPEN SPACES,Non-Planned Building Maintenance,Environmental and Regulatory Services
Swale Borough Council,29UM,31/03/2020,1175636,101.31,KIRKMAN & JOURDAIN LTD,01766240                 ,LEISURE & OPEN SPACES,Non-Planned Building Maintenance,Environmental and Regulatory Services
Swale Borough Council,29UM,31/03/2020,1175636,39.71,KIRKMAN & JOURDAIN LTD,01766240                 ,LEISURE & OPEN SPACES,Non-Planned Building Maintenance,Environmental and Regulatory Services
Swale Borough Council,29UM,31/03/2020,1175636,67.50,KIRKMAN & JOURDAIN LTD,01766240                 ,LEISURE & OPEN SPACES,Non-Planned Building Maintenance,Cultural and Related Services
Swale Borough Council,29UM,31/03/2020,1175636,119.17,KIRKMAN & JOURDAIN LTD,01766240                 ,PROPERTY SERVICES,Non-Planned Building Maintenance,Trading Undertaking
Swale Borough Council,29UM,31/03/2020,1175636,123.80,KIRKMAN & JOURDAIN LTD,01766240                 ,PROPERTY SERVICES,Non-Planned Building Maintenance,Trading Undertaking
Swale Borough Council,29UM,31/03/2020,1175636,12124.43,KIRKMAN & JOURDAIN LTD,01766240                 ,PROPERTY SERVICES,Non-Planned Building Maintenance,Corporate & Democratic Core
Swale Borough Council,29UM,31/03/2020,1175636,6677.86,KIRKMAN & JOURDAIN LTD,01766240                 ,PROPERTY SERVICES,Buildings Maintenance,Corporate & Democratic Core
Swale Borough Council,29UM,31/03/2020,1175636,63.92,KIRKMAN & JOURDAIN LTD,01766240                 ,PROPERTY SERVICES,Non-Planned Building Maintenance,Corporate & Democratic Core
Swale Borough Council,29UM,31/03/2020,1175636,117.79,KIRKMAN & JOURDAIN LTD,01766240                 ,PROPERTY SERVICES,Non-Planned Building Maintenance,Corporate & Democratic Core
Swale Borough Council,29UM,31/03/2020,1175636,27.00,KIRKMAN & JOURDAIN LTD,01766240                 ,PROPERTY SERVICES,Non-Planned Building Maintenance,Corporate & Democratic Core
Swale Borough Council,29UM,31/03/2020,1175636,231.50,KIRKMAN & JOURDAIN LTD,01766240                 ,PROPERTY SERVICES,Non-Planned Building Maintenance,Corporate & Democratic Core
Swale Borough Council,29UM,31/03/2020,1175636,55.00,KIRKMAN & JOURDAIN LTD,01766240                 ,CONTRACTS,Non-Planned Building Maintenance,Environmental and Regulatory Services
Swale Borough Council,29UM,31/03/2020,1175636,36.05,KIRKMAN & JOURDAIN LTD,01766240                 ,CONTRACTS,Non-Planned Building Maintenance,Environmental and Regulatory Services
Swale Borough Council,29UM,31/03/2020,1175636,54.00,KIRKMAN & JOURDAIN LTD,01766240                 ,CONTRACTS,Non-Planned Building Maintenance,Environmental and Regulatory Services
Swale Borough Council,29UM,31/03/2020,1175636,27.50,KIRKMAN & JOURDAIN LTD,01766240                 ,CONTRACTS,Non-Planned Building Maintenance,Environmental and Regulatory Services
Swale Borough Council,29UM,31/03/2020,1175636,116.61,KIRKMAN & JOURDAIN LTD,01766240                 ,CONTRACTS,Non-Planned Building Maintenance,Environmental and Regulatory Services
Swale Borough Council,29UM,31/03/2020,1175636,59.75,KIRKMAN & JOURDAIN LTD,01766240                 ,CONTRACTS,Non-Planned Building Maintenance,Environmental and Regulatory Services
Swale Borough Council,29UM,31/03/2020,1175636,258.33,KIRKMAN & JOURDAIN LTD,01766240                 ,CONTRACTS,Non-Planned Building Maintenance,Environmental and Regulatory Services
Swale Borough Council,29UM,31/03/2020,1175636,68.75,KIRKMAN & JOURDAIN LTD,01766240                 ,CONTRACTS,Non-Planned Building Maintenance,Environmental and Regulatory Services
Swale Borough Council,29UM,31/03/2020,1175636,27.50,KIRKMAN & JOURDAIN LTD,01766240                 ,CONTRACTS,Non-Planned Building Maintenance,Environmental and Regulatory Services
Swale Borough Council,29UM,31/03/2020,1175636,55.00,KIRKMAN & JOURDAIN LTD,01766240                 ,CONTRACTS,Non-Planned Building Maintenance,Environmental and Regulatory Services
Swale Borough Council,29UM,31/03/2020,1175636,67.63,KIRKMAN & JOURDAIN LTD,01766240                 ,CONTRACTS,Non-Planned Building Maintenance,Environmental and Regulatory Services
Swale Borough Council,29UM,31/03/2020,1175636,41.25,KIRKMAN & JOURDAIN LTD,01766240                 ,CONTRACTS,Non-Planned Building Maintenance,Environmental and Regulatory Services
Swale Borough Council,29UM,31/03/2020,1175636,558.88,KIRKMAN & JOURDAIN LTD,01766240                 ,CONTRACTS,Non-Planned Building Maintenance,Environmental and Regulatory Services
Swale Borough Council,29UM,31/03/2020,1175636,27.50,KIRKMAN & JOURDAIN LTD,01766240                 ,CONTRACTS,Non-Planned Building Maintenance,Environmental and Regulatory Services
Swale Borough Council,29UM,31/03/2020,1175636,79.00,KIRKMAN & JOURDAIN LTD,01766240                 ,CONTRACTS,Non-Planned Building Maintenance,Environmental and Regulatory Services
Swale Borough Council,29UM,31/03/2020,1175636,27.00,KIRKMAN & JOURDAIN LTD,01766240                 ,CONTRACTS,Non-Planned Building Maintenance,Environmental and Regulatory Services
Swale Borough Council,29UM,31/03/2020,1175636,137.89,KIRKMAN & JOURDAIN LTD,01766240                 ,LEISURE & OPEN SPACES,Non-Planned Building Maintenance,Cultural and Related Services
Swale Borough Council,29UM,31/03/2020,1175644,102.41,KIRKMAN & JOURDAIN LTD,01766240                 ,LEISURE & OPEN SPACES,Non-Planned Building Maintenance,Environmental and Regulatory Services
Swale Borough Council,29UM,31/03/2020,1175644,197.91,KIRKMAN & JOURDAIN LTD,01766240                 ,SERVICE DELIVERY,Building Maintenance - Reactive,Cultural and Related Services
Swale Borough Council,29UM,31/03/2020,1175644,27.50,KIRKMAN & JOURDAIN LTD,01766240                 ,HOUSING SERVICES,General Maintenance,Housing
Swale Borough Council,29UM,31/03/2020,1175644,79.47,KIRKMAN & JOURDAIN LTD,01766240                 ,PROPERTY SERVICES,Non-Planned Building Maintenance,Corporate & Democratic Core
Swale Borough Council,29UM,31/03/2020,1175644,146.93,KIRKMAN & JOURDAIN LTD,01766240                 ,PROPERTY SERVICES,Non-Planned Building Maintenance,Corporate & Democratic Core
Swale Borough Council,29UM,31/03/2020,1175644,132.00,KIRKMAN & JOURDAIN LTD,01766240                 ,PROPERTY SERVICES,Non-Planned Building Maintenance,Corporate & Democratic Core
Swale Borough Council,29UM,31/03/2020,1175644,254.50,KIRKMAN & JOURDAIN LTD,01766240                 ,PROPERTY SERVICES,Non-Planned Building Maintenance,Corporate & Democratic Core
Swale Borough Council,29UM,31/03/2020,1175644,253.85,KIRKMAN & JOURDAIN LTD,01766240                 ,PROPERTY SERVICES,Non-Planned Building Maintenance,Corporate & Democratic Core
Swale Borough Council,29UM,31/03/2020,1175644,935.00,KIRKMAN & JOURDAIN LTD,01766240                 ,PROPERTY SERVICES,Non-Planned Building Maintenance,Corporate & Democratic Core
Swale Borough Council,29UM,31/03/2020,1175644,114.75,KIRKMAN & JOURDAIN LTD,01766240                 ,PROPERTY SERVICES,Non-Planned Building Maintenance,Corporate & Democratic Core
Swale Borough Council,29UM,31/03/2020,1175644,90.30,KIRKMAN & JOURDAIN LTD,01766240                 ,PROPERTY SERVICES,Non-Planned Building Maintenance,Corporate & Democratic Core
Swale Borough Council,29UM,31/03/2020,1175644,177.31,KIRKMAN & JOURDAIN LTD,01766240                 ,PROPERTY SERVICES,Non-Planned Building Maintenance,Corporate & Democratic Core
Swale Borough Council,29UM,31/03/2020,1175644,3296.00,KIRKMAN & JOURDAIN LTD,01766240                 ,LEISURE & OPEN SPACES,Maintenance - Grounds,Cultural and Related Services
Swale Borough Council,29UM,31/03/2020,1175644,444.45,KIRKMAN & JOURDAIN LTD,01766240                 ,CONTRACTS,Buildings Maintenance,Environmental and Regulatory Services
Swale Borough Council,29UM,31/03/2020,1175644,806.46,KIRKMAN & JOURDAIN LTD,01766240                 ,CONTRACTS,Non-Planned Building Maintenance,Environmental and Regulatory Services
Swale Borough Council,29UM,31/03/2020,1175644,55.00,KIRKMAN & JOURDAIN LTD,01766240                 ,CONTRACTS,Non-Planned Building Maintenance,Environmental and Regulatory Services
Swale Borough Council,29UM,31/03/2020,1175644,12040.83,KIRKMAN & JOURDAIN LTD,01766240                 ,CONTRACTS,Non-Planned Building Maintenance,Environmental and Regulatory Services
Swale Borough Council,29UM,31/03/2020,1175644,88.15,KIRKMAN & JOURDAIN LTD,01766240                 ,CONTRACTS,Non-Planned Building Maintenance,Environmental and Regulatory Services
Swale Borough Council,29UM,31/03/2020,1175644,66.84,KIRKMAN & JOURDAIN LTD,01766240                 ,CONTRACTS,Non-Planned Building Maintenance,Environmental and Regulatory Services
Swale Borough Council,29UM,31/03/2020,1175644,102.05,KIRKMAN & JOURDAIN LTD,01766240                 ,CONTRACTS,Non-Planned Building Maintenance,Environmental and Regulatory Services
Swale Borough Council,29UM,31/03/2020,1175644,27.50,KIRKMAN & JOURDAIN LTD,01766240                 ,CONTRACTS,Non-Planned Building Maintenance,Environmental and Regulatory Services
Swale Borough Council,29UM,31/03/2020,1175665,3000.00,LANDMARK CHAMBERS,                         ,PROPERTY SERVICES,Legal Fees,Trading Undertaking
Swale Borough Council,29UM,31/03/2020,1175671,500.00,LEMAR LIMITED,04350292                 ,LEISURE & OPEN SPACES,Maintenance - Grounds,Environmental and Regulatory Services
Swale Borough Council,29UM,31/03/2020,1175671,495.00,LEMAR LIMITED,04350292                 ,LEISURE & OPEN SPACES,Maintenance - Grounds,Environmental and Regulatory Services
Swale Borough Council,29UM,31/03/2020,1174991,16703.00,LESSHOMELESS LIMITED,08458851                 ,HOUSING SERVICES,NL (Nightly Lets) - Homelessness Landlord Payments,Housing
Swale Borough Council,29UM,31/03/2020,1175001,61863.00,LINK PROPERTY GROUP,                         ,HOUSING SERVICES,NL (Nightly Lets) - Homelessness Landlord Payments,Housing
Swale Borough Council,29UM,31/03/2020,1175655,280.00,M.T.S. CLEANSING SERVICES LTD,2045340                  ,LEISURE & OPEN SPACES,Clearing Cesspools,Cultural and Related Services
Swale Borough Council,29UM,31/03/2020,1175584,120735.50,MAIDSTONE BOROUGH COUNCIL,                         ,CAR PARKS,Staff Costs Recovery - MKS,Internal Trading Cost Centres
Swale Borough Council,29UM,31/03/2020,1175629,1092.00,MAYLOW CONSTRUCTION LTD,                         ,LEISURE & OPEN SPACES,Maintenance - Grounds,Environmental and Regulatory Services
Swale Borough Council,29UM,31/03/2020,1175629,928.00,MAYLOW CONSTRUCTION LTD,                         ,LEISURE & OPEN SPACES,Maintenance - Grounds,Environmental and Regulatory Services
Swale Borough Council,29UM,31/03/2020,1175594,35.00,MEDICHEM MANUFACTURING LTD,                         ,CONTRACTS,Equipment Purchase,Internal Trading Cost Centres
Swale Borough Council,29UM,31/03/2020,1175594,7.00,MEDICHEM MANUFACTURING LTD,                         ,CONTRACTS,Equipment Purchase,Internal Trading Cost Centres
Swale Borough Council,29UM,31/03/2020,1175594,87.50,MEDICHEM MANUFACTURING LTD,                         ,ENVIRONMENTAL RESPONSE TEAM,Equipment Purchase,Internal Trading Cost Centres
Swale Borough Council,29UM,31/03/2020,1175594,17.50,MEDICHEM MANUFACTURING LTD,                         ,ENVIRONMENTAL RESPONSE TEAM,Equipment Purchase,Internal Trading Cost Centres
Swale Borough Council,29UM,31/03/2020,1175594,35.00,MEDICHEM MANUFACTURING LTD,                         ,LICENCING,Equipment Purchase,Internal Trading Cost Centres
Swale Borough Council,29UM,31/03/2020,1175594,7.00,MEDICHEM MANUFACTURING LTD,                         ,LICENCING,Equipment Purchase,Internal Trading Cost Centres
Swale Borough Council,29UM,31/03/2020,1175594,70.00,MEDICHEM MANUFACTURING LTD,                         ,LEISURE & OPEN SPACES,Equipment Purchase,Cultural and Related Services
Swale Borough Council,29UM,31/03/2020,1175594,14.00,MEDICHEM MANUFACTURING LTD,                         ,LEISURE & OPEN SPACES,Equipment Purchase,Cultural and Related Services
Swale Borough Council,29UM,31/03/2020,1174985,1092.00,MEDWAY ACCOMMODATION LIMITED,                         ,HOUSING SERVICES,B & B - Homelessness Landlord Payments,Housing
Swale Borough Council,29UM,31/03/2020,1174985,227.50,MEDWAY ACCOMMODATION LIMITED,                         ,HOUSING SERVICES,B & B - Homelessness Landlord Payments,Housing
Swale Borough Council,29UM,31/03/2020,1174985,140.00,MEDWAY ACCOMMODATION LIMITED,                         ,HOUSING SERVICES,B & B - Homelessness Landlord Payments,Housing
Swale Borough Council,29UM,31/03/2020,1174985,29.17,MEDWAY ACCOMMODATION LIMITED,                         ,HOUSING SERVICES,B & B - Homelessness Landlord Payments,Housing
Swale Borough Council,29UM,31/03/2020,1175171,1188.00,MEDWAY ACCOMMODATION LIMITED,                         ,HOUSING SERVICES,B & B - Homelessness Landlord Payments,Housing
Swale Borough Council,29UM,31/03/2020,1175171,247.50,MEDWAY ACCOMMODATION LIMITED,                         ,HOUSING SERVICES,B & B - Homelessness Landlord Payments,Housing
Swale Borough Council,29UM,31/03/2020,1175171,140.00,MEDWAY ACCOMMODATION LIMITED,                         ,HOUSING SERVICES,B & B - Homelessness Landlord Payments,Housing
Swale Borough Council,29UM,31/03/2020,1175171,29.17,MEDWAY ACCOMMODATION LIMITED,                         ,HOUSING SERVICES,B & B - Homelessness Landlord Payments,Housing
Swale Borough Council,29UM,31/03/2020,1175373,1260.00,MEDWAY ACCOMMODATION LIMITED,                         ,HOUSING SERVICES,B & B - Homelessness Landlord Payments,Housing
Swale Borough Council,29UM,31/03/2020,1175373,262.50,MEDWAY ACCOMMODATION LIMITED,                         ,HOUSING SERVICES,B & B - Homelessness Landlord Payments,Housing
Swale Borough Council,29UM,31/03/2020,1175373,140.00,MEDWAY ACCOMMODATION LIMITED,                         ,HOUSING SERVICES,B & B - Homelessness Landlord Payments,Housing
Swale Borough Council,29UM,31/03/2020,1175373,29.17,MEDWAY ACCOMMODATION LIMITED,                         ,HOUSING SERVICES,B & B - Homelessness Landlord Payments,Housing
Swale Borough Council,29UM,31/03/2020,1175637,190.83,MEDWAY ACCOMMODATION LIMITED,                         ,HOUSING SERVICES,B & B - Homelessness Landlord Payments,Housing
Swale Borough Council,29UM,31/03/2020,1175637,916.00,MEDWAY ACCOMMODATION LIMITED,                         ,HOUSING SERVICES,B & B - Homelessness Landlord Payments,Housing
Swale Borough Council,29UM,31/03/2020,1175637,140.00,MEDWAY ACCOMMODATION LIMITED,                         ,HOUSING SERVICES,B & B - Homelessness Landlord Payments,Housing
Swale Borough Council,29UM,31/03/2020,1175637,29.17,MEDWAY ACCOMMODATION LIMITED,                         ,HOUSING SERVICES,B & B - Homelessness Landlord Payments,Housing
Swale Borough Council,29UM,31/03/2020,1175601,200.00,MR J W GATES,                         ,LEISURE & OPEN SPACES,Maintenance - Grounds,Cultural and Related Services
Swale Borough Council,29UM,31/03/2020,1175601,66.00,MR J W GATES,                         ,LEISURE & OPEN SPACES,Maintenance - Grounds,Cultural and Related Services
Swale Borough Council,29UM,31/03/2020,1175652,100.00,MR J W GATES,                         ,SERVICE DELIVERY,Private Contractors - CIS,Environmental and Regulatory Services
Swale Borough Council,29UM,31/03/2020,1175652,150.00,MR J W GATES,                         ,SERVICE DELIVERY,Private Contractors - CIS,Environmental and Regulatory Services
Swale Borough Council,29UM,31/03/2020,1174986,170.00,REDACTED PERSONAL INFORMATION,                         ,HOUSING SERVICES,B & B - Homelessness Landlord Payments,Housing
Swale Borough Council,29UM,31/03/2020,1174986,100.00,REDACTED PERSONAL INFORMATION,                         ,HOUSING SERVICES,B & B - Homelessness Landlord Payments,Housing
Swale Borough Council,29UM,31/03/2020,1175374,285.00,REDACTED PERSONAL INFORMATION,                         ,HOUSING SERVICES,B & B - Homelessness Landlord Payments,Housing
Swale Borough Council,29UM,31/03/2020,1175167,7.50,O2 (UK) LTD,1743099                  ,COMMUNITY SAFETY,Cellphone,Environmental and Regulatory Services
Swale Borough Council,29UM,31/03/2020,1175167,15.00,O2 (UK) LTD,1743099                  ,REVENUE SERVICES,Cellphone,Central Services to the Public
Swale Borough Council,29UM,31/03/2020,1175167,7.50,O2 (UK) LTD,1743099                  ,PLANNING SERVICES,Cellphone,Planning and Development Services
Swale Borough Council,29UM,31/03/2020,1175167,7.50,O2 (UK) LTD,1743099                  ,ECONOMIC DEVELOPMENT,Cellphone,Planning and Development Services
Swale Borough Council,29UM,31/03/2020,1175167,17.50,O2 (UK) LTD,1743099                  ,EMERGENCY PLANNING,Cellphone,Central Services to the Public
Swale Borough Council,29UM,31/03/2020,1175167,16.50,O2 (UK) LTD,1743099                  ,SERVICE DELIVERY,Cellphone,Cultural and Related Services
Swale Borough Council,29UM,31/03/2020,1175167,54.00,O2 (UK) LTD,1743099                  ,HOUSING SERVICES,Cellphone,Housing
Swale Borough Council,29UM,31/03/2020,1175167,75.09,O2 (UK) LTD,1743099                  ,HOUSING SERVICES,Cellphone,Housing
Swale Borough Council,29UM,31/03/2020,1175167,7.50,O2 (UK) LTD,1743099                  ,REVENUE SERVICES,Cellphone,Housing
Swale Borough Council,29UM,31/03/2020,1175167,22.50,O2 (UK) LTD,1743099                  ,LICENCING,Cellphone,Internal Trading Cost Centres
Swale Borough Council,29UM,31/03/2020,1175167,57.50,O2 (UK) LTD,1743099                  ,CONTRACTS,Cellphone,Internal Trading Cost Centres
Swale Borough Council,29UM,31/03/2020,1175167,7.50,O2 (UK) LTD,1743099                  ,SERVICE DELIVERY,Cellphone,Internal Trading Cost Centres
Swale Borough Council,29UM,31/03/2020,1175167,20.50,O2 (UK) LTD,1743099                  ,ECONOMIC DEVELOPMENT,Cellphone,Internal Trading Cost Centres
Swale Borough Council,29UM,31/03/2020,1175167,15.00,O2 (UK) LTD,1743099                  ,TOURISM & SPORTS DEVELOPMENT,Cellphone,Internal Trading Cost Centres
Swale Borough Council,29UM,31/03/2020,1175167,7.50,O2 (UK) LTD,1743099                  ,ECONOMY & COMMUNITIES,Cellphone,Internal Trading Cost Centres
Swale Borough Council,29UM,31/03/2020,1175167,69.50,O2 (UK) LTD,1743099                  ,PROPERTY SERVICES,Cellphone,Internal Trading Cost Centres
Swale Borough Council,29UM,31/03/2020,1175167,61.17,O2 (UK) LTD,1743099                  ,LEISURE & OPEN SPACES,Cellphone,Internal Trading Cost Centres
Swale Borough Council,29UM,31/03/2020,1175167,7.60,O2 (UK) LTD,1743099                  ,PLANNING SERVICES,Cellphone,Internal Trading Cost Centres
Swale Borough Council,29UM,31/03/2020,1175167,7.50,O2 (UK) LTD,1743099                  ,CONTRACTS,Cellphone,Internal Trading Cost Centres
Swale Borough Council,29UM,31/03/2020,1175167,67.62,O2 (UK) LTD,1743099                  ,ENVIRONMENTAL RESPONSE TEAM,Cellphone,Internal Trading Cost Centres
Swale Borough Council,29UM,31/03/2020,1175167,7.00,O2 (UK) LTD,1743099                  ,MKS ENVIRONMENTAL SERVICES,Cellphone,Internal Trading Cost Centres
Swale Borough Council,29UM,31/03/2020,1175167,7.50,O2 (UK) LTD,1743099                  ,DIRECTOR OF REGENERATION,Cellphone,Internal Trading Cost Centres
Swale Borough Council,29UM,31/03/2020,1175167,14.50,O2 (UK) LTD,1743099                  ,CHIEF EXECUTIVE,Cellphone,Internal Trading Cost Centres
Swale Borough Council,29UM,31/03/2020,1175167,17.50,O2 (UK) LTD,1743099                  ,COMMUNICATIONS,Cellphone,Internal Trading Cost Centres
Swale Borough Council,29UM,31/03/2020,1175167,7.50,O2 (UK) LTD,1743099                  ,POLICY,Cellphone,Internal Trading Cost Centres
Swale Borough Council,29UM,31/03/2020,1175167,7.50,O2 (UK) LTD,1743099                  ,COMMISSIONING & CUSTOMER CONTACT,Cellphone,Internal Trading Cost Centres
Swale Borough Council,29UM,31/03/2020,1175167,15.00,O2 (UK) LTD,1743099                  ,COMMISSIONING & CUSTOMER CONTACT,Cellphone,Internal Trading Cost Centres
Swale Borough Council,29UM,31/03/2020,1175167,30.29,O2 (UK) LTD,1743099                  ,ENVIRONMENTAL RESPONSE TEAM,Cellphone,Internal Trading Cost Centres
Swale Borough Council,29UM,31/03/2020,1175167,30.00,O2 (UK) LTD,1743099                  ,MKS LEGAL SERVICES,Cellphone,Internal Trading Cost Centres
Swale Borough Council,29UM,31/03/2020,1175167,7.50,O2 (UK) LTD,1743099                  ,INFORMATION GOVERNANCE,Cellphone,Internal Trading Cost Centres
Swale Borough Council,29UM,31/03/2020,1175167,37.00,O2 (UK) LTD,1743099                  ,MULTISTOREY CAR PARK,Cellphone,Highway and Transport Services
Swale Borough Council,29UM,31/03/2020,1175167,13.52,O2 (UK) LTD,1743099                  ,LEISURE & OPEN SPACES,Cellphone,Cultural and Related Services
Swale Borough Council,29UM,31/03/2020,1175167,3.00,O2 (UK) LTD,1743099                  ,PLANNING SERVICES,Cellphone,Planning and Development Services
Swale Borough Council,29UM,31/03/2020,1175167,45.00,O2 (UK) LTD,1743099                  ,HOUSING SERVICES,Cellphone,Housing
Swale Borough Council,29UM,31/03/2020,1175167,17.50,O2 (UK) LTD,1743099                  ,ENVIRONMENTAL RESPONSE TEAM,Cellphone,Environmental and Regulatory Services
Swale Borough Council,29UM,31/03/2020,1175167,17.50,O2 (UK) LTD,1743099                  ,TOURISM & SPORTS DEVELOPMENT,Cellphone,Cultural and Related Services
Swale Borough Council,29UM,31/03/2020,1175167,50.00,O2 (UK) LTD,1743099                  ,HOUSING SERVICES,Cellphone,Housing
Swale Borough Council,29UM,31/03/2020,1175631,3927.00,OBSIDIAN SECURITY LTD,                         ,PROPERTY SERVICES,Non-Planned Building Maintenance,Corporate & Democratic Core
Swale Borough Council,29UM,31/03/2020,1175632,845.00,OBSIDIAN SECURITY LTD,                         ,PROPERTY SERVICES,Non-Planned Building Maintenance,Corporate & Democratic Core
Swale Borough Council,29UM,31/03/2020,1175571,6673.00,OVENDEN ALLWORKS LIMITED,08052607                 ,ECONOMIC DEVELOPMENT,Fees and Services,Planning and Development Services
Swale Borough Council,29UM,31/03/2020,1175571,30704.27,OVENDEN ALLWORKS LIMITED,08052607                 ,PLANNING SERVICES,Payments in Year,Ledger/Suspense Codes
Swale Borough Council,29UM,31/03/2020,1175577,59033.00,PARAMOUNT INDEPENDENT PROPERTY SERVICES,                         ,HOUSING SERVICES,NL (Nightly Lets) - Homelessness Landlord Payments,Housing
Swale Borough Council,29UM,31/03/2020,1175661,300.00,PATHFINDER DEVELOPMENT CONSULTANTS LTD,08666821                 ,PLANNING SERVICES,Fees and Services,Planning and Development Services
Swale Borough Council,29UM,31/03/2020,1175676,2416.72,PORTAKABIN LIMITED,685303                   ,LEISURE & OPEN SPACES,Payments in Year,Ledger/Suspense Codes
Swale Borough Council,29UM,31/03/2020,1175708,1000.00,PURPLE BRICKS,                         ,HOUSING SERVICES,Homelessness  Prevention Services,Housing
Swale Borough Council,29UM,31/03/2020,1175520,1000.00,Q/BOROUGH & DIST NAVAL ENSIGN ASSOC,                         ,ECONOMY & COMMUNITIES,Grants & Subscriptions,Central Services to the Public
Swale Borough Council,29UM,31/03/2020,1175569,1000.00,S & J SERVICES,                         ,LEISURE & OPEN SPACES,Maintenance - Grounds,Cultural and Related Services
Swale Borough Council,29UM,31/03/2020,1175569,425.56,S & J SERVICES,                         ,LEISURE & OPEN SPACES,Maintenance - Grounds,Cultural and Related Services
Swale Borough Council,29UM,31/03/2020,1175570,4000.00,S & J SERVICES,                         ,LEISURE & OPEN SPACES,Maintenance - Grounds,Cultural and Related Services
Swale Borough Council,29UM,31/03/2020,1175570,1756.90,S & J SERVICES,                         ,LEISURE & OPEN SPACES,Maintenance - Grounds,Cultural and Related Services
Swale Borough Council,29UM,31/03/2020,1175683,1880.00,REDACTED PERSONAL INFORMATION,                         ,HOUSING SERVICES,Housing Renovation Grants,Not used in this Structure
Swale Borough Council,29UM,31/03/2020,1175684,1980.00,REDACTED PERSONAL INFORMATION,                         ,HOUSING SERVICES,Housing Renovation Grants,Not used in this Structure
Swale Borough Council,29UM,31/03/2020,1175675,10000.00,SITTINGBOURNE FOOD BANK,                         ,ECONOMY & COMMUNITIES,Communities Fund Expenditure,Ledger/Suspense Codes
Swale Borough Council,29UM,31/03/2020,1175686,853.52,SOUTH EAST BUILDING CO LTD,1786838                  ,HOUSING SERVICES,Housing Renovation Grants,Not used in this Structure
Swale Borough Council,29UM,31/03/2020,1175687,1528.88,SOUTH EAST BUILDING CO LTD,1786838                  ,HOUSING SERVICES,Housing Renovation Grants,Not used in this Structure
Swale Borough Council,29UM,31/03/2020,1175688,1267.56,SOUTH EAST BUILDING CO LTD,1786838                  ,HOUSING SERVICES,Housing Renovation Grants,Not used in this Structure
Swale Borough Council,29UM,31/03/2020,1175147,9600.00,SQUARE GAIN LTD,09583012                 ,POLICY,Fees and Services,Environmental and Regulatory Services
Swale Borough Council,29UM,31/03/2020,1174723,12724.50,THE GREAT OUTDOOR GYM COMPANY LTD,6041524                  ,LEISURE & OPEN SPACES,Capital Constuction - CIS Works,Not used in this Structure
Swale Borough Council,29UM,31/03/2020,1175645,1716.00,THE OYSTER PARTNERSHIP,05020374                 ,PLANNING SERVICES,Agency/Contract Staff,Planning and Development Services
Swale Borough Council,29UM,31/03/2020,1175646,1739.00,THE OYSTER PARTNERSHIP,05020374                 ,PLANNING SERVICES,Agency/Contract Staff,Internal Trading Cost Centres
Swale Borough Council,29UM,31/03/2020,1175647,1694.00,THE OYSTER PARTNERSHIP,05020374                 ,PLANNING SERVICES,Agency/Contract Staff,Planning and Development Services
Swale Borough Council,29UM,31/03/2020,1175682,2026.50,TOUCHSTONE,                         ,HOUSING SERVICES,Homelessness  Prevention Services,Housing
Swale Borough Council,29UM,31/03/2020,1175573,215.00,TUNBRIDGE WELLS BOROUGH COUNCIL,                         ,MKS ENVIRONMENTAL SERVICES,MKS Charges for Environmental Services,Internal Trading Cost Centres
Swale Borough Council,29UM,31/03/2020,1175573,200.42,TUNBRIDGE WELLS BOROUGH COUNCIL,                         ,MKS ENVIRONMENTAL SERVICES,MKS Charges for Environmental Services,Internal Trading Cost Centres
Swale Borough Council,29UM,31/03/2020,1175573,9985.92,TUNBRIDGE WELLS BOROUGH COUNCIL,                         ,MKS ENVIRONMENTAL SERVICES,MKS Charges for Environmental Services,Internal Trading Cost Centres
Swale Borough Council,29UM,31/03/2020,1175573,58934.74,TUNBRIDGE WELLS BOROUGH COUNCIL,                         ,MKS ENVIRONMENTAL SERVICES,MKS Charges for Environmental Services,Internal Trading Cost Centres
Swale Borough Council,29UM,31/03/2020,1175573,59444.40,TUNBRIDGE WELLS BOROUGH COUNCIL,                         ,MKS ENVIRONMENTAL SERVICES,MKS Charges for Environmental Services,Internal Trading Cost Centres
Swale Borough Council,29UM,31/03/2020,1175657,390.00,WILLOW TREE HOME SOLUTIONS LTD,                         ,HOUSING SERVICES,Staying Put small repairs (contractors),Housing
